Workbook

Sheet sunsettable
A1: Calculation of local times of sunrise, solar noon, sunset, dawn, and dusk based on the calculation procedure by NOAA (http://www.srrb.noaa.gov/highlights/sunrise/sunrise.html)
A3: Input
A4: latitude in decimal degrees (positive in northern hemisphere) | B4: =37.9481147779205 -> 37.94811478
A5: longitude in decimal degrees (negative for western hemisphere) | B5: =-121.72492146492 -> -121.7249215 | C5: dusk on offset | D5: 8
A6: year | B6: 2011 | C6: dawn Off offset | D6: 9 | G6: =MIN($E$83:$E$1947) -> 17:27:32.251 | H6: Earliest ON time
A7: month | B7: 1 | G7: =CONCATENATE(TEXT(HOUR($G$6),"#"),":00:00") -> 17:00:00 | H7: Earliest start time hour (Set your wall timer and TaskScheduler to start the script at this time)
A8: day | B8: 1
A9: time zone in hours relative to GMT/UTC (PST= -8, MST= -7, CST= -6, EST= -5) | B9: -8 | C9: DST Start | D9: DST End | E9: Note: DST starts the 2nd sunday in march and ends the day before the 1st sunday in November.
A10: daylight savings time (no= 0, yes= 1) | B10: 1 | C10: 2011-03-13 | D10: 2011-11-06
A12: Output (local time in days) | G12: =MAX($M$83:$M$1947) -> 07:42:07.877 | H12: Latest OFF time
A13: astronomical dawn (sun is 18 degrees below horizon) | B13: =dawn(B4,B5,B6,B7,B8,B9,B10,18) -> 06:48:38.671 | G13: =CONCATENATE(TEXT(HOUR($G$12)+1,"#"),":00:00") -> 8:00:00 | H13: Latest wall timer hour (Set your wall timer and Task Scheduler to stop the script at this time)
A14: nautical dawn (sun is 12 degrees below horizon) | B14: =dawn(B4,B5,B6,B7,B8,B9,B10,12) -> 07:20:36.070
A15: civil dawn (sun is 6 degrees below horizon) | B15: =dawn(B4,B5,B6,B7,B8,B9,B10,6) -> 07:53:29.464
A16: sunrise (sun is 0.833 degrees below horizon to account for refraction) | B16: =sunrise(B4,B5,B6,B7,B8,B9,B10) -> 08:22:50.989
A17: solar noon (sun is at its highest point in the sky for this day) | B17: =solarnoon(B4,B5,B6,B7,B8,B9,B10) -> 13:10:29.459
A18: sunset (sun is 0.833 degrees below horizon to account for refraction) | B18: =sunset(B4,B5,B6,B7,B8,B9,B10) -> 17:58:15.803
A19: civil dusk (sun is 6 degrees below horizon) | B19: =dusk(B4,B5,B6,B7,B8,B9,B10,6) -> 18:27:36.643
A20: nautical dusk (sun is 12 degrees below horizon) | B20: =dusk(B4,B5,B6,B7,B8,B9,B10,12) -> 19:00:29.430
A21: astronomical dusk (sun is 18 degrees below horizon) | B21: =dusk(B4,B5,B6,B7,B8,B9,B10,18) -> 19:32:26.372
A22: =CONCATENATE("Dynamic dawn (sun is ",D5,"° below horizon)") -> Dynamic dawn (sun is 8° below horizon) | B22: =dusk(B4,B5,B6,B7,B8,B9,B10,D6) -> 18:44:11.237
A23: =CONCATENATE("Dynamic dusk (sun is ",D5,"° below horizon)") -> Dynamic dusk (sun is 8° below horizon) | B23: =dusk(B4,B5,B6,B7,B8,B9,B10,D5) -> 18:38:41.667
E73: ```
C76: =MIN($E$83:$E$449) -> 17:27:32.251 | D76: Earliest ON time
C77: =CONCATENATE(TEXT(HOUR($C$76),"#"),":00:00") -> 17:00:00 | D77: Delay will be from the earliest start time hour (Set your TaskScheduler to start the script at this time)
C78: =$G$13 -> 8:00:00 | D78: Wall Timer OFF
I79: Dusk | J79: Dusk | K79: Dawn
I80: (UTC at | J80: (LDT at | K80: (UTC at
D81: Dawn OFF | E81: Dusk ON | F81: Dur- | I81: =CONCATENATE($D$5,"°below") -> 8°below | J81: =CONCATENATE($D$5,"° below ") -> 8° below | K81: =CONCATENATE($D$6,"° below") -> 9° below
C82: Date | D82: =CONCATENATE($D$5,"° ") -> 8° | E82: =CONCATENATE($D$5,"° ") -> 8° | F82: ation | G82: Delay | H82: DST | I82: horizon | J82: horizon | K82: horizon | L82: date | M82: sunrise | N82: sunset | O82: Day # | Q82: durz | R82: delta | S82: newdur
C83: =TEXT(L83,"mm/dd/yyyy") -> 01/01/2011 | D83: =TEXT(dawn($B$4,$B$5,YEAR($C83+1),MONTH($C83+1),DAY($C83+1),$B$9,$H83,$D$6),"hh:mm:ss") -> 06:37:05 | E83: =dusk($B$4,$B$5,YEAR(C83),MONTH(C83),DAY(C83),$B$9,$H83,$D$5) -> 17:38:41.667 | F83: =((TIME(23,59,59.999)-E83)+D83)*24 -> 12.97287022 | G83: =HOUR(E83-$C$77)*3600+MINUTE(E83-$C$77)*60+SECOND(E83-$C$77) -> 2322 | H83: =IF($B$10=1,IF(MATCH($L83,DATE(YEAR($L83),{1,3,11},{1,15,8})-WEEKDAY(DATE(YEAR($L83),{1,3,11},7)))=2,1,0),0) -> 0 | I83: =dusk($B$4,$B$5,YEAR($C83),MONTH($C83),DAY($C83),0,0,$D$5) -> 1.068537815 | J83: =dusk($B$4,$B$5,YEAR($C83),MONTH($C83),DAY($C83),$B$9,$H83,$D$5) -> 17:38:41.667 | K83: =dawn($B$4,$B$5,YEAR($C83+1),MONTH($C83+1),DAY($C83+1),0,0,$D$6) -> 14:37:05.249 | L83: =DATE($B$6,1,1) -> 2011-01-01 | M83: =dawn($B$4,$B$5,YEAR($C83+1),MONTH($C83+1),DAY($C83+1),$B$9,$H83,0) -> 07:27:49.548 | N83: =dusk($B$4,$B$5,YEAR(C83),MONTH(C83),DAY(C83),$B$9,$H83,0) -> 16:53:25.151 | O83: 0 | P83: =MIN(dusk($B$4,$B$5,YEAR(C83),MONTH(C83),DAY(C83),0,0,$D$5),E83) -> 17:38:41.667 | Q83: =IF(I83>K83,((TIME(23,59,59.999)-I83)+K83)*24,(K83-I83)*24) -> 12.97293929 | R83: =(E83-J83)*24 -> 0 | S83: =(Q83-R83) -> 12.97293929
C84: 01/02/2011 | D84: 06:37:14 | E84: 17:39:27.882 | F84: 12.9625328 | G84: =HOUR(E84-$C$77)*3600+MINUTE(E84-$C$77)*60+SECOND(E84-$C$77) -> 2368 | H84: =IF($B$10=1,IF(MATCH($L84,DATE(YEAR($L84),{1,3,11},{1,15,8})-WEEKDAY(DATE(YEAR($L84),{1,3,11},7)))=2,1,0),0) -> 0 | I84: 1.069072707 | J84: 17:39:27.882 | K84: =dawn($B$4,$B$5,YEAR($C84+1),MONTH($C84+1),DAY($C84+1),0,0,$D$6) -> 14:37:14.108 | L84: =L83+1 -> 2011-01-02 | M84: =dawn($B$4,$B$5,YEAR($C84+1),MONTH($C84+1),DAY($C84+1),$B$9,$H84,0) -> 07:27:55.248 | N84: =dusk($B$4,$B$5,YEAR(C84),MONTH(C84),DAY(C84),$B$9,$H84,0) -> 16:54:14.112 | O84: =O83+1 -> 1 | P84: =MIN(dusk($B$4,$B$5,YEAR(C84),MONTH(C84),DAY(C84),0,0,$D$5),E84) -> 17:39:27.882 | Q84: =IF(I84>K84,((TIME(23,59,59.999)-I84)+K84)*24,(K84-I84)*24) -> 12.96256273 | R84: =(E84-J84)*24 -> 0 | S84: =(Q84-R84) -> 12.96256273
C85: 01/03/2011 | D85: 06:37:21 | E85: 17:40:15.261 | F85: 12.95131634 | G85: 2415 | H85: =IF($B$10=1,IF(MATCH($L85,DATE(YEAR($L85),{1,3,11},{1,15,8})-WEEKDAY(DATE(YEAR($L85),{1,3,11},7)))=2,1,0),0) -> 0 | I85: 1.069621079 | J85: 17:40:15.261 | K85: 14:37:21.107 | L85: =L84+1 -> 2011-01-03 | M85: 07:27:58.859 | N85: 16:55:04.450 | O85: =O84+1 -> 2 | P85: 17:40:15.261 | Q85: 12.95134616 | R85: 0 | S85: 12.95134616
C86: 01/04/2011 | D86: 06:37:26 | E86: 17:41:03.761 | F86: 12.93923316 | G86: 2464 | H86: =IF($B$10=1,IF(MATCH($L86,DATE(YEAR($L86),{1,3,11},{1,15,8})-WEEKDAY(DATE(YEAR($L86),{1,3,11},7)))=2,1,0),0) -> 0 | I86: 1.070182414 | J86: 17:41:03.761 | K86: 14:37:26.234 | L86: 2011-01-04 | M86: 07:28:00.377 | N86: 16:55:56.114 | O86: 3 | P86: 17:41:03.761 | Q86: 12.93929817 | R86: 0 | S86: 12.93929817
C87: 01/05/2011 | D87: 06:37:29 | E87: 17:41:53.335 | F87: 12.92629573 | G87: 2513 | H87: =IF($B$10=1,IF(MATCH($L87,DATE(YEAR($L87),{1,3,11},{1,15,8})-WEEKDAY(DATE(YEAR($L87),{1,3,11},7)))=2,1,0),0) -> 0 | I87: 1.070756196 | J87: 17:41:53.335 | K87: 14:37:29.476 | L87: 2011-01-05 | M87: 07:27:59.796 | N87: 16:56:49.051 | O87: 4 | P87: 17:41:53.335 | Q87: 12.9264279 | R87: 0 | S87: 12.9264279
C88: 01/06/2011 | D88: 06:37:31 | E88: 17:42:43.940 | F88: 12.91279434 | G88: 2564 | H88: =IF($B$10=1,IF(MATCH($L88,DATE(YEAR($L88),{1,3,11},{1,15,8})-WEEKDAY(DATE(YEAR($L88),{1,3,11},7)))=2,1,0),0) -> 0 | I88: 1.071341903 | J88: 17:42:43.940 | K88: 14:37:30.822 | L88: 2011-01-06 | M88: 07:27:57.113 | N88: 16:57:43.211 | O88: 5 | P88: 17:42:43.940 | Q88: 12.91274501 | R88: 0 | S88: 12.91274501
C89: 01/07/2011 | D89: 06:37:30 | E89: 17:43:35.530 | F89: 12.89818601 | G89: 2616 | H89: =IF($B$10=1,IF(MATCH($L89,DATE(YEAR($L89),{1,3,11},{1,15,8})-WEEKDAY(DATE(YEAR($L89),{1,3,11},7)))=2,1,0),0) -> 0 | I89: 1.071939009 | J89: 17:43:35.530 | K89: 14:37:30.265 | L89: 2011-01-07 | M89: 07:27:52.330 | N89: 16:58:38.541 | O89: 6 | P89: 17:43:35.530 | Q89: 12.89825969 | R89: 0 | S89: 12.89825969
C90: 01/08/2011 | D90: 06:37:28 | E90: 17:44:28.060 | F90: 12.88303891 | G90: 2668 | H90: =IF($B$10=1,IF(MATCH($L90,DATE(YEAR($L90),{1,3,11},{1,15,8})-WEEKDAY(DATE(YEAR($L90),{1,3,11},7)))=2,1,0),0) -> 0 | I90: 1.07254699 | J90: 17:44:28.060 | K90: 14:37:27.797 | L90: 2011-01-08 | M90: 07:27:45.446 | N90: 16:59:34.987 | O90: 7 | P90: 17:44:28.060 | Q90: 12.8829826 | R90: 0 | S90: 12.8829826
C91: 01/09/2011 | D91: 06:37:23 | E91: 17:45:21.484 | F91: 12.86681007 | G91: 2721 | H91: =IF($B$10=1,IF(MATCH($L91,DATE(YEAR($L91),{1,3,11},{1,15,8})-WEEKDAY(DATE(YEAR($L91),{1,3,11},7)))=2,1,0),0) -> 0 | I91: 1.073165321 | J91: 17:45:21.484 | K91: 14:37:23.413 | L91: 2011-01-09 | M91: 07:27:36.466 | N91: 17:00:32.497 | O91: 8 | P91: 17:45:21.484 | Q91: 12.86692484 | R91: 0 | S91: 12.86692484
C92: 01/10/2011 | D92: 06:37:17 | E92: 17:46:15.756 | F92: 12.85006764 | G92: 2776 | H92: =IF($B$10=1,IF(MATCH($L92,DATE(YEAR($L92),{1,3,11},{1,15,8})-WEEKDAY(DATE(YEAR($L92),{1,3,11},7)))=2,1,0),0) -> 0 | I92: 1.073793478 | J92: 17:46:15.756 | K92: 14:37:17.109 | L92: 2011-01-10 | M92: 07:27:25.395 | N92: 17:01:31.017 | O92: 9 | P92: 17:46:15.756 | Q92: 12.85009792 | R92: 0 | S92: 12.85009792
C93: 01/11/2011 | D93: 06:37:09 | E93: 17:47:10.833 | F93: 12.83254636 | G93: 2831 | H93: =IF($B$10=1,IF(MATCH($L93,DATE(YEAR($L93),{1,3,11},{1,15,8})-WEEKDAY(DATE(YEAR($L93),{1,3,11},7)))=2,1,0),0) -> 0 | I93: 1.074430939 | J93: 17:47:10.833 | K93: 14:37:08.883 | L93: 2011-01-11 | M93: 07:27:12.241 | N93: 17:02:30.493 | O93: 10 | P93: 17:47:10.833 | Q93: 12.83251374 | R93: 0 | S93: 12.83251374
C94: 01/12/2011 | D94: 06:36:59 | E94: 17:48:06.669 | F94: 12.81425866 | G94: 2887 | H94: =IF($B$10=1,IF(MATCH($L94,DATE(YEAR($L94),{1,3,11},{1,15,8})-WEEKDAY(DATE(YEAR($L94),{1,3,11},7)))=2,1,0),0) -> 0 | I94: 1.075077185 | J94: 17:48:06.669 | K94: 14:36:58.733 | L94: 2011-01-12 | M94: 07:26:57.010 | N94: 17:03:30.872 | O94: 11 | P94: 17:48:06.669 | Q94: 12.81418455 | R94: 0 | S94: 12.81418455
C95: 01/13/2011 | D95: 06:36:47 | E95: 17:49:03.219 | F95: 12.79521691 | G95: 2943 | H95: =IF($B$10=1,IF(MATCH($L95,DATE(YEAR($L95),{1,3,11},{1,15,8})-WEEKDAY(DATE(YEAR($L95),{1,3,11},7)))=2,1,0),0) -> 0 | I95: 1.075731703 | J95: 17:49:03.219 | K95: 14:36:46.662 | L95: 2011-01-13 | M95: 07:26:39.716 | N95: 17:04:32.102 | O95: 12 | P95: 17:49:03.219 | Q95: 12.79512292 | R95: 0 | S95: 12.79512292
C96: 01/14/2011 | D96: 06:36:33 | E96: 17:50:00.440 | F96: 12.77543332 | G96: 3000 | H96: =IF($B$10=1,IF(MATCH($L96,DATE(YEAR($L96),{1,3,11},{1,15,8})-WEEKDAY(DATE(YEAR($L96),{1,3,11},7)))=2,1,0),0) -> 0 | I96: 1.076393982 | J96: 17:50:00.440 | K96: 14:36:32.670 | L96: 2011-01-14 | M96: 07:26:20.368 | N96: 17:05:34.129 | O96: 13 | P96: 17:50:00.440 | Q96: 12.7753417 | R96: 0 | S96: 12.7753417
C97: 01/15/2011 | D97: 06:36:17 | E97: 17:50:58.288 | F97: 12.75491996 | G97: 3058 | H97: =IF($B$10=1,IF(MATCH($L97,DATE(YEAR($L97),{1,3,11},{1,15,8})-WEEKDAY(DATE(YEAR($L97),{1,3,11},7)))=2,1,0),0) -> 0 | I97: 1.07706352 | J97: 17:50:58.288 | K97: 14:36:16.762 | L97: 2011-01-15 | M97: 07:25:58.982 | N97: 17:06:36.901 | O97: 14 | P97: 17:50:58.288 | Q97: 12.75485399 | R97: 0 | S97: 12.75485399
C98: 01/16/2011 | D98: 06:35:59 | E98: 17:51:56.721 | F98: 12.73368874 | G98: 3117 | H98: =IF($B$10=1,IF(MATCH($L98,DATE(YEAR($L98),{1,3,11},{1,15,8})-WEEKDAY(DATE(YEAR($L98),{1,3,11},7)))=2,1,0),0) -> 0 | I98: 1.077739821 | J98: 17:51:56.721 | K98: 14:35:58.944 | L98: 2011-01-16 | M98: 07:25:35.572 | N98: 17:07:40.365 | O98: 15 | P98: 17:51:56.721 | Q98: 12.73367311 | R98: 0 | S98: 12.73367311
C99: 01/17/2011 | D99: 06:35:39 | E99: 17:52:55.695 | F99: 12.71175136 | G99: 3176 | H99: =IF($B$10=1,IF(MATCH($L99,DATE(YEAR($L99),{1,3,11},{1,15,8})-WEEKDAY(DATE(YEAR($L99),{1,3,11},7)))=2,1,0),0) -> 0 | I99: 1.078422397 | J99: 17:52:55.695 | K99: 14:35:39.220 | L99: 2011-01-17 | M99: 07:25:10.155 | N99: 17:08:44.471 | O99: 16 | P99: 17:52:55.695 | Q99: 12.71181258 | R99: 0 | S99: 12.71181258
C100: 01/18/2011 | D100: 06:35:18 | E100: 17:53:55.170 | F100: 12.68939709 | G100: 3235 | H100: =IF($B$10=1,IF(MATCH($L100,DATE(YEAR($L100),{1,3,11},{1,15,8})-WEEKDAY(DATE(YEAR($L100),{1,3,11},7)))=2,1,0),0) -> 0 | I100: 1.079110769 | J100: 17:53:55.170 | K100: 14:35:17.600 | L100: 2011-01-18 | M100: 07:24:42.748 | N100: 17:09:49.169 | O100: 17 | P100: 17:53:55.170 | Q100: 12.68928608 | R100: 0 | S100: 12.68928608
C101: 01/19/2011 | D101: 06:34:54 | E101: 17:54:55.106 | F101: 12.66608165 | G101: 3295 | H101: =IF($B$10=1,IF(MATCH($L101,DATE(YEAR($L101),{1,3,11},{1,15,8})-WEEKDAY(DATE(YEAR($L101),{1,3,11},7)))=2,1,0),0) -> 0 | I101: 1.079804468 | J101: 17:54:55.106 | K101: 14:34:54.093 | L101: 2011-01-19 | M101: 07:24:13.372 | N101: 17:10:54.407 | O101: 18 | P101: 17:54:55.106 | Q101: 12.6661074 | R101: 0 | S101: 12.6661074
C102: 01/20/2011 | D102: 06:34:29 | E102: 17:55:55.462 | F102: 12.6423716 | G102: 3355 | H102: =IF($B$10=1,IF(MATCH($L102,DATE(YEAR($L102),{1,3,11},{1,15,8})-WEEKDAY(DATE(YEAR($L102),{1,3,11},7)))=2,1,0),0) -> 0 | I102: 1.080503035 | J102: 17:55:55.462 | K102: 14:34:28.708 | L102: 2011-01-20 | M102: 07:23:42.046 | N102: 17:12:00.139 | O102: 19 | P102: 17:55:55.462 | Q102: 12.64229046 | R102: 0 | S102: 12.64229046
C103: 01/21/2011 | D103: 06:34:01 | E103: 17:56:56.200 | F103: 12.61772212 | G103: 3416 | H103: =IF($B$10=1,IF(MATCH($L103,DATE(YEAR($L103),{1,3,11},{1,15,8})-WEEKDAY(DATE(YEAR($L103),{1,3,11},7)))=2,1,0),0) -> 0 | I103: 1.081206023 | J103: 17:56:56.200 | K103: 14:34:01.458 | L103: 2011-01-21 | M103: 07:23:08.792 | N103: 17:13:06.315 | O103: 20 | P103: 17:56:56.200 | Q103: 12.61784921 | R103: 0 | S103: 12.61784921
C104: 01/22/2011 | D104: 06:33:32 | E104: 17:57:57.283 | F104: 12.59269924 | G104: 3477 | H104: =IF($B$10=1,IF(MATCH($L104,DATE(YEAR($L104),{1,3,11},{1,15,8})-WEEKDAY(DATE(YEAR($L104),{1,3,11},7)))=2,1,0),0) -> 0 | I104: 1.081912994 | J104: 17:57:57.283 | K104: 14:33:32.354 | L104: 2011-01-22 | M104: 07:22:33.633 | N104: 17:14:12.888 | O104: 21 | P104: 17:57:57.283 | Q104: 12.59279769 | R104: 0 | S104: 12.59279769
C105: 01/23/2011 | D105: 06:33:01 | E105: 17:58:58.673 | F105: 12.56703534 | G105: 3539 | H105: =IF($B$10=1,IF(MATCH($L105,DATE(YEAR($L105),{1,3,11},{1,15,8})-WEEKDAY(DATE(YEAR($L105),{1,3,11},7)))=2,1,0),0) -> 0 | I105: 1.082623527 | J105: 17:58:58.673 | K105: 14:33:01.412 | L105: 2011-01-23 | M105: 07:21:56.593 | N105: 17:15:19.815 | O105: 22 | P105: 17:58:58.673 | Q105: 12.56714992 | R105: 0 | S105: 12.56714992
C106: 01/24/2011 | D106: 06:32:29 | E106: 18:00:00.335 | F106: 12.54101803 | G106: 3600 | H106: =IF($B$10=1,IF(MATCH($L106,DATE(YEAR($L106),{1,3,11},{1,15,8})-WEEKDAY(DATE(YEAR($L106),{1,3,11},7)))=2,1,0),0) -> 0 | I106: 1.083337212 | J106: 18:00:00.335 | K106: 14:32:28.647 | L106: 2011-01-24 | M106: 07:21:17.697 | N106: 17:16:27.049 | O106: 23 | P106: 18:00:00.335 | Q106: 12.54091992 | R106: 0 | S106: 12.54091992
C107: 01/25/2011 | D107: 06:31:54 | E107: 18:01:02.235 | F107: 12.51410129 | G107: 3662 | H107: =IF($B$10=1,IF(MATCH($L107,DATE(YEAR($L107),{1,3,11},{1,15,8})-WEEKDAY(DATE(YEAR($L107),{1,3,11},7)))=2,1,0),0) -> 0 | I107: 1.08405365 | J107: 18:01:02.235 | K107: 14:31:54.073 | L107: 2011-01-25 | M107: 07:20:36.970 | N107: 17:17:34.549 | O107: 24 | P107: 18:01:02.235 | Q107: 12.5141217 | R107: 0 | S107: 12.5141217
C108: 01/26/2011 | D108: 06:31:18 | E108: 18:02:04.341 | F108: 12.48684984 | G108: 3724 | H108: =IF($B$10=1,IF(MATCH($L108,DATE(YEAR($L108),{1,3,11},{1,15,8})-WEEKDAY(DATE(YEAR($L108),{1,3,11},7)))=2,1,0),0) -> 0 | I108: 1.08477246 | J108: 18:02:04.341 | K108: 14:31:17.710 | L108: 2011-01-26 | M108: 07:19:54.440 | N108: 17:18:42.271 | O108: 25 | P108: 18:02:04.341 | Q108: 12.48676918 | R108: 0 | S108: 12.48676918
C109: 01/27/2011 | D109: 06:30:40 | E109: 18:03:06.619 | F109: 12.45899474 | G109: 3787 | H109: =IF($B$10=1,IF(MATCH($L109,DATE(YEAR($L109),{1,3,11},{1,15,8})-WEEKDAY(DATE(YEAR($L109),{1,3,11},7)))=2,1,0),0) -> 0 | I109: 1.085493275 | J109: 18:03:06.619 | K109: 14:30:39.573 | L109: 2011-01-27 | M109: 07:19:10.132 | N109: 17:19:50.177 | O109: 26 | P109: 18:03:06.619 | Q109: 12.45887622 | R109: 0 | S109: 12.45887622
C110: 01/28/2011 | D110: 06:30:00 | E110: 18:04:09.040 | F110: 12.43054448 | G110: 3849 | H110: =IF($B$10=1,IF(MATCH($L110,DATE(YEAR($L110),{1,3,11},{1,15,8})-WEEKDAY(DATE(YEAR($L110),{1,3,11},7)))=2,1,0),0) -> 0 | I110: 1.086215739 | J110: 18:04:09.040 | K110: 14:29:59.684 | L110: 2011-01-28 | M110: 07:18:24.077 | N110: 17:20:58.226 | O110: 27 | P110: 18:04:09.040 | Q110: 12.43045659 | R110: 0 | S110: 12.43045659
C111: 01/29/2011 | D111: 06:29:18 | E111: 18:05:11.574 | F111: 12.40150716 | G111: 3912 | H111: =IF($B$10=1,IF(MATCH($L111,DATE(YEAR($L111),{1,3,11},{1,15,8})-WEEKDAY(DATE(YEAR($L111),{1,3,11},7)))=2,1,0),0) -> 0 | I111: 1.086939516 | J111: 18:05:11.574 | K111: 14:29:18.060 | L111: 2011-01-29 | M111: 07:17:36.303 | N111: 17:22:06.381 | O111: 28 | P111: 18:05:11.574 | Q111: 12.40152393 | R111: 0 | S111: 12.40152393
C112: 01/30/2011 | D112: 06:28:35 | E112: 18:06:14.194 | F112: 12.3721683 | G112: 3974 | H112: =IF($B$10=1,IF(MATCH($L112,DATE(YEAR($L112),{1,3,11},{1,15,8})-WEEKDAY(DATE(YEAR($L112),{1,3,11},7)))=2,1,0),0) -> 0 | I112: 1.087664284 | J112: 18:06:14.194 | K112: 14:28:34.724 | L112: 2011-01-30 | M112: 07:16:46.839 | N112: 17:23:14.607 | O112: 29 | P112: 18:06:14.194 | Q112: 12.37209175 | R112: 0 | S112: 12.37209175
C113: 01/31/2011 | D113: 06:27:50 | E113: 18:07:16.873 | F113: 12.34225749 | G113: 4037 | H113: =IF($B$10=1,IF(MATCH($L113,DATE(YEAR($L113),{1,3,11},{1,15,8})-WEEKDAY(DATE(YEAR($L113),{1,3,11},7)))=2,1,0),0) -> 0 | I113: 1.088389734 | J113: 18:07:16.873 | K113: 14:27:49.697 | L113: 2011-01-31 | M113: 07:15:55.715 | N113: 17:24:22.869 | O113: 30 | P113: 18:07:16.873 | Q113: 12.34217339 | R113: 0 | S113: 12.34217339
C114: 02/01/2011 | D114: 06:27:03 | E114: 18:08:19.586 | F114: 12.31178172 | G114: 4100 | H114: =IF($B$10=1,IF(MATCH($L114,DATE(YEAR($L114),{1,3,11},{1,15,8})-WEEKDAY(DATE(YEAR($L114),{1,3,11},7)))=2,1,0),0) -> 0 | I114: 1.089115576 | J114: 18:08:19.586 | K114: 14:27:03.001 | L114: 2011-02-01 | M114: 07:15:02.963 | N114: 17:25:31.134 | O114: 31 | P114: 18:08:19.586 | Q114: 12.31178206 | R114: 0 | S114: 12.31178206
C115: 02/02/2011 | D115: 06:26:15 | E115: 18:09:22.309 | F115: 12.28102537 | G115: 4162 | H115: =IF($B$10=1,IF(MATCH($L115,DATE(YEAR($L115),{1,3,11},{1,15,8})-WEEKDAY(DATE(YEAR($L115),{1,3,11},7)))=2,1,0),0) -> 0 | I115: 1.089841535 | J115: 18:09:22.309 | K115: 14:26:14.659 | L115: 2011-02-02 | M115: 07:14:08.614 | N115: 17:26:39.370 | O115: 32 | P115: 18:09:22.309 | Q115: 12.28093076 | R115: 0 | S115: 12.28093076
C116: 02/03/2011 | D116: 06:25:25 | E116: 18:10:25.019 | F116: 12.24971688 | G116: 4225 | H116: =IF($B$10=1,IF(MATCH($L116,DATE(YEAR($L116),{1,3,11},{1,15,8})-WEEKDAY(DATE(YEAR($L116),{1,3,11},7)))=2,1,0),0) -> 0 | I116: 1.090567352 | J116: 18:10:25.019 | K116: 14:25:24.696 | L116: 2011-02-03 | M116: 07:13:12.699 | N116: 17:27:47.548 | O116: 33 | P116: 18:10:25.019 | Q116: 12.2496323 | R116: 0 | S116: 12.2496323
C117: 02/04/2011 | D117: 06:24:33 | E117: 18:11:27.696 | F117: 12.21786208 | G117: 4288 | H117: =IF($B$10=1,IF(MATCH($L117,DATE(YEAR($L117),{1,3,11},{1,15,8})-WEEKDAY(DATE(YEAR($L117),{1,3,11},7)))=2,1,0),0) -> 0 | I117: 1.091292784 | J117: 18:11:27.696 | K117: 14:24:33.134 | L117: 2011-02-04 | M117: 07:12:15.251 | N117: 17:28:55.640 | O117: 34 | P117: 18:11:27.696 | Q117: 12.21789929 | R117: 0 | S117: 12.21789929
C118: 02/05/2011 | D118: 06:23:40 | E118: 18:12:30.321 | F118: 12.18574421 | G118: 4350 | H118: =IF($B$10=1,IF(MATCH($L118,DATE(YEAR($L118),{1,3,11},{1,15,8})-WEEKDAY(DATE(YEAR($L118),{1,3,11},7)))=2,1,0),0) -> 0 | I118: 1.092017602 | J118: 18:12:30.321 | K118: 14:23:40 | L118: 2011-02-05 | M118: 07:11:16.302 | N118: 17:30:03.620 | O118: 35 | P118: 18:12:30.321 | Q118: 12.18574414 | R118: 0 | S118: 12.18574414
C119: 02/06/2011 | D119: 06:22:45 | E119: 18:13:32.874 | F119: 12.15309055 | G119: 4413 | H119: =IF($B$10=1,IF(MATCH($L119,DATE(YEAR($L119),{1,3,11},{1,15,8})-WEEKDAY(DATE(YEAR($L119),{1,3,11},7)))=2,1,0),0) -> 0 | I119: 1.092741597 | J119: 18:13:32.874 | K119: 14:22:45.318 | L119: 2011-02-06 | M119: 07:10:15.885 | N119: 17:31:11.461 | O119: 36 | P119: 18:13:32.874 | Q119: 12.15317901 | R119: 0 | S119: 12.15317901
C120: 02/07/2011 | D120: 06:21:49 | E120: 18:14:35.339 | F120: 12.12018356 | G120: 4475 | H120: =IF($B$10=1,IF(MATCH($L120,DATE(YEAR($L120),{1,3,11},{1,15,8})-WEEKDAY(DATE(YEAR($L120),{1,3,11},7)))=2,1,0),0) -> 0 | I120: 1.093464574 | J120: 18:14:35.339 | K120: 14:21:49.116 | L120: 2011-02-07 | M120: 07:09:14.034 | N120: 17:32:19.141 | O120: 37 | P120: 18:14:35.339 | Q120: 12.12021584 | R120: 0 | S120: 12.12021584
C121: 02/08/2011 | D121: 06:20:51 | E121: 18:15:37.701 | F121: 12.08674979 | G121: 4538 | H121: =IF($B$10=1,IF(MATCH($L121,DATE(YEAR($L121),{1,3,11},{1,15,8})-WEEKDAY(DATE(YEAR($L121),{1,3,11},7)))=2,1,0),0) -> 0 | I121: 1.094186351 | J121: 18:15:37.701 | K121: 14:20:51.420 | L121: 2011-02-08 | M121: 07:08:10.782 | N121: 17:33:26.638 | O121: 38 | P121: 18:15:37.701 | Q121: 12.08686633 | R121: 0 | S121: 12.08686633
C122: 02/09/2011 | D122: 06:19:52 | E122: 18:16:39.945 | F122: 12.05307094 | G122: 4600 | H122: =IF($B$10=1,IF(MATCH($L122,DATE(YEAR($L122),{1,3,11},{1,15,8})-WEEKDAY(DATE(YEAR($L122),{1,3,11},7)))=2,1,0),0) -> 0 | I122: 1.094906766 | J122: 18:16:39.945 | K122: 14:19:52.256 | L122: 2011-02-09 | M122: 07:07:06.163 | N122: 17:34:33.932 | O122: 39 | P122: 18:16:39.945 | Q122: 12.05314195 | R122: 0 | S122: 12.05314195
C123: 02/10/2011 | D123: 06:18:52 | E123: 18:17:42.058 | F123: 12.01915059 | G123: 4662 | H123: =IF($B$10=1,IF(MATCH($L123,DATE(YEAR($L123),{1,3,11},{1,15,8})-WEEKDAY(DATE(YEAR($L123),{1,3,11},7)))=2,1,0),0) -> 0 | I123: 1.09562567 | J123: 18:17:42.058 | K123: 14:18:51.652 | L123: 2011-02-10 | M123: 07:06:00.210 | N123: 17:35:41.003 | O123: 40 | P123: 18:17:42.058 | Q123: 12.0190539 | R123: 0 | S123: 12.0190539
C124: 02/11/2011 | D124: 06:17:50 | E124: 18:18:44.029 | F124: 11.98471416 | G124: 4724 | H124: =IF($B$10=1,IF(MATCH($L124,DATE(YEAR($L124),{1,3,11},{1,15,8})-WEEKDAY(DATE(YEAR($L124),{1,3,11},7)))=2,1,0),0) -> 0 | I124: 1.096342929 | J124: 18:18:44.029 | K124: 14:17:49.636 | L124: 2011-02-11 | M124: 07:04:52.958 | N124: 17:36:47.835 | O124: 41 | P124: 18:18:44.029 | Q124: 11.98461314 | R124: 0 | S124: 11.98461314
C125: 02/12/2011 | D125: 06:16:46 | E125: 18:19:45.848 | F125: 11.94976451 | G125: 4786 | H125: =IF($B$10=1,IF(MATCH($L125,DATE(YEAR($L125),{1,3,11},{1,15,8})-WEEKDAY(DATE(YEAR($L125),{1,3,11},7)))=2,1,0),0) -> 0 | I125: 1.097058423 | J125: 18:19:45.848 | K125: 14:16:46.237 | L125: 2011-02-12 | M125: 07:03:44.441 | N125: 17:37:54.412 | O125: 42 | P125: 18:19:45.848 | Q125: 11.94983038 | R125: 0 | S125: 11.94983038
C126: 02/13/2011 | D126: 06:15:41 | E126: 18:20:47.505 | F126: 11.91458193 | G126: 4848 | H126: =IF($B$10=1,IF(MATCH($L126,DATE(YEAR($L126),{1,3,11},{1,15,8})-WEEKDAY(DATE(YEAR($L126),{1,3,11},7)))=2,1,0),0) -> 0 | I126: 1.097772049 | J126: 18:20:47.505 | K126: 14:15:41.483 | L126: 2011-02-13 | M126: 07:02:34.693 | N126: 17:39:00.719 | O126: 43 | P126: 18:20:47.505 | Q126: 11.91471607 | R126: 0 | S126: 11.91471607
C127: 02/14/2011 | D127: 06:14:35 | E127: 18:21:48.993 | F127: 11.87916857 | G127: 4909 | H127: =IF($B$10=1,IF(MATCH($L127,DATE(YEAR($L127),{1,3,11},{1,15,8})-WEEKDAY(DATE(YEAR($L127),{1,3,11},7)))=2,1,0),0) -> 0 | I127: 1.098483717 | J127: 18:21:48.993 | K127: 14:14:35.403 | L127: 2011-02-14 | M127: 07:01:23.750 | N127: 17:40:06.744 | O127: 44 | P127: 18:21:48.993 | Q127: 11.87928042 | R127: 0 | S127: 11.87928042
C128: 02/15/2011 | D128: 06:13:28 | E128: 18:22:50.305 | F128: 11.84352629 | G128: 4970 | H128: =IF($B$10=1,IF(MATCH($L128,DATE(YEAR($L128),{1,3,11},{1,15,8})-WEEKDAY(DATE(YEAR($L128),{1,3,11},7)))=2,1,0),0) -> 0 | I128: 1.099193349 | J128: 18:22:50.305 | K128: 14:13:28.025 | L128: 2011-02-15 | M128: 07:00:11.644 | N128: 17:41:12.475 | O128: 45 | P128: 18:22:50.305 | Q128: 11.84353335 | R128: 0 | S128: 11.84353335
C129: 02/16/2011 | D129: 06:12:19 | E129: 18:23:51.436 | F129: 11.8073788 | G129: 5031 | H129: =IF($B$10=1,IF(MATCH($L129,DATE(YEAR($L129),{1,3,11},{1,15,8})-WEEKDAY(DATE(YEAR($L129),{1,3,11},7)))=2,1,0),0) -> 0 | I129: 1.099900883 | J129: 18:23:51.436 | K129: 14:12:19.381 | L129: 2011-02-16 | M129: 06:58:58.411 | N129: 17:42:17.902 | O129: 46 | P129: 18:23:51.436 | Q129: 11.80748456 | R129: 0 | S129: 11.80748456
C130: 02/17/2011 | D130: 06:11:09 | E130: 18:24:52.382 | F130: 11.77100509 | G130: 5092 | H130: =IF($B$10=1,IF(MATCH($L130,DATE(YEAR($L130),{1,3,11},{1,15,8})-WEEKDAY(DATE(YEAR($L130),{1,3,11},7)))=2,1,0),0) -> 0 | I130: 1.10060627 | J130: 18:24:52.382 | K130: 14:11:09.498 | L130: 2011-02-17 | M130: 06:57:44.086 | N130: 17:43:23.016 | O130: 47 | P130: 18:24:52.382 | Q130: 11.7711435 | R130: 0 | S130: 11.7711435
C131: 02/18/2011 | D131: 06:09:58 | E131: 18:25:53.138 | F131: 11.73440605 | G131: 5153 | H131: =IF($B$10=1,IF(MATCH($L131,DATE(YEAR($L131),{1,3,11},{1,15,8})-WEEKDAY(DATE(YEAR($L131),{1,3,11},7)))=2,1,0),0) -> 0 | I131: 1.10130947 | J131: 18:25:53.138 | K131: 14:09:58.408 | L131: 2011-02-18 | M131: 06:56:28.703 | N131: 17:44:27.810 | O131: 48 | P131: 18:25:53.138 | Q131: 11.73451934 | R131: 0 | S131: 11.73451934
C132: 02/19/2011 | D132: 06:08:46 | E132: 18:26:53.704 | F132: 11.6975823 | G132: 5214 | H132: =IF($B$10=1,IF(MATCH($L132,DATE(YEAR($L132),{1,3,11},{1,15,8})-WEEKDAY(DATE(YEAR($L132),{1,3,11},7)))=2,1,0),0) -> 0 | I132: 1.10201046 | J132: 18:26:53.704 | K132: 14:08:46.139 | L132: 2011-02-19 | M132: 06:55:12.296 | N132: 17:45:32.278 | O132: 49 | P132: 18:26:53.704 | Q132: 11.69762103 | R132: 0 | S132: 11.69762103
C133: 02/20/2011 | D133: 06:07:33 | E133: 18:27:54.077 | F133: 11.66053415 | G133: 5274 | H133: =IF($B$10=1,IF(MATCH($L133,DATE(YEAR($L133),{1,3,11},{1,15,8})-WEEKDAY(DATE(YEAR($L133),{1,3,11},7)))=2,1,0),0) -> 0 | I133: 1.102709225 | J133: 18:27:54.077 | K133: 14:07:32.723 | L133: 2011-02-20 | M133: 06:53:54.899 | N133: 17:46:36.414 | O133: 50 | P133: 18:27:54.077 | Q133: 11.66045727 | R133: 0 | S133: 11.66045727
C134: 02/21/2011 | D134: 06:06:18 | E134: 18:28:54.258 | F134: 11.62298388 | G134: 5334 | H134: =IF($B$10=1,IF(MATCH($L134,DATE(YEAR($L134),{1,3,11},{1,15,8})-WEEKDAY(DATE(YEAR($L134),{1,3,11},7)))=2,1,0),0) -> 0 | I134: 1.103405764 | J134: 18:28:54.258 | K134: 14:06:18.190 | L134: 2011-02-21 | M134: 06:52:36.548 | N134: 17:47:40.214 | O134: 51 | P134: 18:28:54.258 | Q134: 11.62303654 | R134: 0 | S134: 11.62303654
C135: 02/22/2011 | D135: 06:05:03 | E135: 18:29:54.247 | F135: 11.58548683 | G135: 5394 | H135: =IF($B$10=1,IF(MATCH($L135,DATE(YEAR($L135),{1,3,11},{1,15,8})-WEEKDAY(DATE(YEAR($L135),{1,3,11},7)))=2,1,0),0) -> 0 | I135: 1.104100086 | J135: 18:29:54.247 | K135: 14:05:02.569 | L135: 2011-02-22 | M135: 06:51:17.277 | N135: 17:48:43.676 | O135: 52 | P135: 18:29:54.247 | Q135: 11.58536706 | R135: 0 | S135: 11.58536706
C136: 02/23/2011 | D136: 06:03:46 | E136: 18:30:54.047 | F136: 11.54748699 | G136: 5454 | H136: =IF($B$10=1,IF(MATCH($L136,DATE(YEAR($L136),{1,3,11},{1,15,8})-WEEKDAY(DATE(YEAR($L136),{1,3,11},7)))=2,1,0),0) -> 0 | I136: 1.104792209 | J136: 18:30:54.047 | K136: 14:03:45.891 | L136: 2011-02-23 | M136: 06:49:57.118 | N136: 17:49:46.798 | O136: 53 | P136: 18:30:54.047 | Q136: 11.54745684 | R136: 0 | S136: 11.54745684
C137: 02/24/2011 | D137: 06:02:28 | E137: 18:31:53.659 | F137: 11.50926145 | G137: 5514 | H137: =IF($B$10=1,IF(MATCH($L137,DATE(YEAR($L137),{1,3,11},{1,15,8})-WEEKDAY(DATE(YEAR($L137),{1,3,11},7)))=2,1,0),0) -> 0 | I137: 1.105482162 | J137: 18:31:53.659 | K137: 14:02:28.188 | L137: 2011-02-24 | M137: 06:48:36.108 | N137: 17:50:49.580 | O137: 54 | P137: 18:31:53.659 | Q137: 11.50931368 | R137: 0 | S137: 11.50931368
C138: 02/25/2011 | D138: 06:01:09 | E138: 18:32:53.087 | F138: 11.47080929 | G138: 5573 | H138: =IF($B$10=1,IF(MATCH($L138,DATE(YEAR($L138),{1,3,11},{1,15,8})-WEEKDAY(DATE(YEAR($L138),{1,3,11},7)))=2,1,0),0) -> 0 | I138: 1.106169983 | J138: 18:32:53.087 | K138: 14:01:09.489 | L138: 2011-02-25 | M138: 06:47:14.279 | N138: 17:51:52.021 | O138: 55 | P138: 18:32:53.087 | Q138: 11.47094515 | R138: 0 | S138: 11.47094515
C139: 02/26/2011 | D139: 05:59:50 | E139: 18:33:52.334 | F139: 11.43240714 | G139: 5632 | H139: =IF($B$10=1,IF(MATCH($L139,DATE(YEAR($L139),{1,3,11},{1,15,8})-WEEKDAY(DATE(YEAR($L139),{1,3,11},7)))=2,1,0),0) -> 0 | I139: 1.106855721 | J139: 18:33:52.334 | K139: 13:59:49.825 | L139: 2011-02-26 | M139: 06:45:51.666 | N139: 17:52:54.122 | O139: 56 | P139: 18:33:52.334 | Q139: 11.43235862 | R139: 0 | S139: 11.43235862
C140: 02/27/2011 | D140: 05:58:29 | E140: 18:34:51.407 | F140: 11.39349811 | G140: 5691 | H140: =IF($B$10=1,IF(MATCH($L140,DATE(YEAR($L140),{1,3,11},{1,15,8})-WEEKDAY(DATE(YEAR($L140),{1,3,11},7)))=2,1,0),0) -> 0 | I140: 1.107539431 | J140: 18:34:51.407 | K140: 13:58:29.227 | L140: 2011-02-27 | M140: 06:44:28.301 | N140: 17:53:55.886 | O140: 57 | P140: 18:34:51.407 | Q140: 11.39356126 | R140: 0 | S140: 11.39356126
C141: 02/28/2011 | D141: 05:57:08 | E141: 18:35:50.310 | F141: 11.35463623 | G141: 5750 | H141: =IF($B$10=1,IF(MATCH($L141,DATE(YEAR($L141),{1,3,11},{1,15,8})-WEEKDAY(DATE(YEAR($L141),{1,3,11},7)))=2,1,0),0) -> 0 | I141: 1.108221175 | J141: 18:35:50.310 | K141: 13:57:07.726 | L141: 2011-02-28 | M141: 06:43:04.220 | N141: 17:54:57.317 | O141: 58 | P141: 18:35:50.310 | Q141: 11.35456007 | R141: 0 | S141: 11.35456007
C142: 03/01/2011 | D142: 05:55:45 | E142: 18:36:49.049 | F142: 11.31526425 | G142: 5809 | H142: =IF($B$10=1,IF(MATCH($L142,DATE(YEAR($L142),{1,3,11},{1,15,8})-WEEKDAY(DATE(YEAR($L142),{1,3,11},7)))=2,1,0),0) -> 0 | I142: 1.108901027 | J142: 18:36:49.049 | K142: 13:55:45.351 | L142: 2011-03-01 | M142: 06:41:39.453 | N142: 17:55:58.416 | O142: 59 | P142: 18:36:49.049 | Q142: 11.31536183 | R142: 0 | S142: 11.31536183
C143: 03/02/2011 | D143: 05:54:22 | E143: 18:37:47.631 | F143: 11.27593583 | G143: 5868 | H143: =IF($B$10=1,IF(MATCH($L143,DATE(YEAR($L143),{1,3,11},{1,15,8})-WEEKDAY(DATE(YEAR($L143),{1,3,11},7)))=2,1,0),0) -> 0 | I143: 1.109579063 | J143: 18:37:47.631 | K143: 13:54:22.134 | L143: 2011-03-02 | M143: 06:40:14.036 | N143: 17:56:59.189 | O143: 60 | P143: 18:37:47.631 | Q143: 11.27597318 | R143: 0 | S143: 11.27597318
C144: 03/03/2011 | D144: 05:52:58 | E144: 18:38:46.064 | F144: 11.23637116 | G144: 5926 | H144: =IF($B$10=1,IF(MATCH($L144,DATE(YEAR($L144),{1,3,11},{1,15,8})-WEEKDAY(DATE(YEAR($L144),{1,3,11},7)))=2,1,0),0) -> 0 | I144: 1.110255368 | J144: 18:38:46.064 | K144: 13:52:58.106 | L144: 2011-03-03 | M144: 06:38:48.001 | N144: 17:57:59.642 | O144: 61 | P144: 18:38:46.064 | Q144: 11.23640058 | R144: 0 | S144: 11.23640058
C145: 03/04/2011 | D145: 05:51:33 | E145: 18:39:44.355 | F145: 11.19656808 | G145: 5984 | H145: =IF($B$10=1,IF(MATCH($L145,DATE(YEAR($L145),{1,3,11},{1,15,8})-WEEKDAY(DATE(YEAR($L145),{1,3,11},7)))=2,1,0),0) -> 0 | I145: 1.110930034 | J145: 18:39:44.355 | K145: 13:51:33.296 | L145: 2011-03-04 | M145: 06:37:21.381 | N145: 17:58:59.779 | O145: 62 | P145: 18:39:44.355 | Q145: 11.19665033 | R145: 0 | S145: 11.19665033
C146: 03/05/2011 | D146: 05:50:08 | E146: 18:40:42.513 | F146: 11.15680205 | G146: 6043 | H146: =IF($B$10=1,IF(MATCH($L146,DATE(YEAR($L146),{1,3,11},{1,15,8})-WEEKDAY(DATE(YEAR($L146),{1,3,11},7)))=2,1,0),0) -> 0 | I146: 1.111603156 | J146: 18:40:42.513 | K146: 13:50:07.736 | L146: 2011-03-05 | M146: 06:35:54.207 | N146: 17:59:59.608 | O146: 63 | P146: 18:40:42.513 | Q146: 11.1567286 | R146: 0 | S146: 11.1567286
C147: =TEXT(L147,"mm/dd/yyyy") -> 03/06/2011 | D147: =TEXT(dawn($B$4,$B$5,YEAR($C147+1),MONTH($C147+1),DAY($C147+1),$B$9,$H147,$D$6),"hh:mm:ss") -> 05:48:41 | E147: =dusk($B$4,$B$5,YEAR(C147),MONTH(C147),DAY(C147),$B$9,$H147,$D$5) -> 18:41:40.546 | F147: =((TIME(23,59,59.999)-E147)+D147)*24 -> 11.11651507 | G147: 6101 | H147: =IF($B$10=1,IF(MATCH($L147,DATE(YEAR($L147),{1,3,11},{1,15,8})-WEEKDAY(DATE(YEAR($L147),{1,3,11},7)))=2,1,0),0) -> 0 | I147: =dusk($B$4,$B$5,YEAR($C147),MONTH($C147),DAY($C147),0,0,$D$5) -> 1.112274835 | J147: =dusk($B$4,$B$5,YEAR($C147),MONTH($C147),DAY($C147),$B$9,$H147,$D$5) -> 18:41:40.546 | K147: 13:48:41.455 | L147: 2011-03-06 | M147: 06:34:26.514 | N147: 18:00:59.134 | O147: 64 | P147: 18:41:40.546 | Q147: 11.11664141 | R147: 0 | S147: 11.11664141
C148: 03/07/2011 | D148: 05:47:14 | E148: 18:42:38.463 | F148: 11.07626017 | G148: =HOUR(E148-$C$77)*3600+MINUTE(E148-$C$77)*60+SECOND(E148-$C$77) -> 6158 | H148: =IF($B$10=1,IF(MATCH($L148,DATE(YEAR($L148),{1,3,11},{1,15,8})-WEEKDAY(DATE(YEAR($L148),{1,3,11},7)))=2,1,0),0) -> 0 | I148: 1.112945178 | J148: 18:42:38.463 | K148: =dawn($B$4,$B$5,YEAR($C148+1),MONTH($C148+1),DAY($C148+1),0,0,$D$6) -> 13:47:14.484 | L148: 2011-03-07 | M148: =dawn($B$4,$B$5,YEAR($C148+1),MONTH($C148+1),DAY($C148+1),$B$9,$H148,0) -> 06:32:58.332 | N148: =dusk($B$4,$B$5,YEAR(C148),MONTH(C148),DAY(C148),$B$9,$H148,0) -> 18:01:58.367 | O148: 65 | P148: =MIN(dusk($B$4,$B$5,YEAR(C148),MONTH(C148),DAY(C148),0,0,$D$5),E148) -> 18:42:38.463 | Q148: =IF(I148>K148,((TIME(23,59,59.999)-I148)+K148)*24,(K148-I148)*24) -> 11.07639466 | R148: =(E148-J148)*24 -> 0 | S148: =(Q148-R148) -> 11.07639466
C149: 03/08/2011 | D149: 05:45:47 | E149: 18:43:36.275 | F149: 11.03603469 | G149: 6216 | H149: =IF($B$10=1,IF(MATCH($L149,DATE(YEAR($L149),{1,3,11},{1,15,8})-WEEKDAY(DATE(YEAR($L149),{1,3,11},7)))=2,1,0),0) -> 0 | I149: 1.113614295 | J149: 18:43:36.275 | K149: 13:45:46.854 | L149: =L148+1 -> 2011-03-08 | M149: 06:31:29.694 | N149: 18:02:57.313 | O149: =O148+1 -> 66 | P149: 18:43:36.275 | Q149: 11.03599411 | R149: 0 | S149: 11.03599411
C150: 03/09/2011 | D150: 05:44:19 | E150: 18:44:33.991 | F150: 10.99555813 | G150: 6274 | H150: =IF($B$10=1,IF(MATCH($L150,DATE(YEAR($L150),{1,3,11},{1,15,8})-WEEKDAY(DATE(YEAR($L150),{1,3,11},7)))=2,1,0),0) -> 0 | I150: 1.1142823 | J150: 18:44:33.991 | K150: 13:44:18.594 | L150: 2011-03-09 | M150: 06:30:00.633 | N150: 18:03:55.982 | O150: 67 | P150: 18:44:33.991 | Q150: 10.99544545 | R150: 0 | S150: 10.99544545
C151: 03/10/2011 | D151: 05:42:50 | E151: 18:45:31.620 | F151: 10.95482767 | G151: 6332 | H151: =IF($B$10=1,IF(MATCH($L151,DATE(YEAR($L151),{1,3,11},{1,15,8})-WEEKDAY(DATE(YEAR($L151),{1,3,11},7)))=2,1,0),0) -> 0 | I151: 1.11494931 | J151: 18:45:31.620 | K151: 13:42:49.736 | L151: 2011-03-10 | M151: 06:28:31.178 | N151: 18:04:54.381 | O151: 68 | P151: 18:45:31.620 | Q151: 10.95475425 | R151: 0 | S151: 10.95475425
C152: 03/11/2011 | D152: 05:41:20 | E152: 18:46:29.174 | F152: 10.91384043 | G152: 6389 | H152: =IF($B$10=1,IF(MATCH($L152,DATE(YEAR($L152),{1,3,11},{1,15,8})-WEEKDAY(DATE(YEAR($L152),{1,3,11},7)))=2,1,0),0) -> 0 | I152: 1.115615445 | J152: 18:46:29.174 | K152: 13:41:20.308 | L152: 2011-03-11 | M152: 06:27:01.362 | N152: 18:05:52.521 | O152: 69 | P152: 18:46:29.174 | Q152: 10.91392599 | R152: 0 | S152: 10.91392599
C153: 03/12/2011 | D153: 05:39:50 | E153: 18:47:26.663 | F153: 10.87287125 | G153: 6447 | H153: =IF($B$10=1,IF(MATCH($L153,DATE(YEAR($L153),{1,3,11},{1,15,8})-WEEKDAY(DATE(YEAR($L153),{1,3,11},7)))=2,1,0),0) -> 0 | I153: 1.116280828 | J153: 18:47:26.663 | K153: 13:39:50.341 | L153: 2011-03-12 | M153: 06:25:31.217 | N153: 18:06:50.411 | O153: 70 | P153: 18:47:26.663 | Q153: 10.87296608 | R153: 0 | S153: 10.87296608
C154: 03/13/2011 | D154: 06:38:20 | E154: 19:48:24.098 | F154: 10.83191714 | G154: 10104 | H154: =IF($B$10=1,IF(MATCH($L154,DATE(YEAR($L154),{1,3,11},{1,15,8})-WEEKDAY(DATE(YEAR($L154),{1,3,11},7)))=2,1,0),0) -> 1 | I154: 1.116945582 | J154: 19:48:24.098 | K154: 13:38:19.866 | L154: 2011-03-13 | M154: 07:24:00.772 | N154: 19:07:48.059 | O154: 71 | P154: 19:48:24.098 | Q154: 10.83187986 | R154: 0 | S154: 10.83187986
C155: 03/14/2011 | D155: 06:36:49 | E155: 19:49:21.490 | F155: 10.79069731 | G155: 10161 | H155: =IF($B$10=1,IF(MATCH($L155,DATE(YEAR($L155),{1,3,11},{1,15,8})-WEEKDAY(DATE(YEAR($L155),{1,3,11},7)))=2,1,0),0) -> 1 | I155: 1.117609834 | J155: 19:49:21.490 | K155: 13:36:48.911 | L155: 2011-03-14 | M155: 07:22:30.060 | N155: 19:08:45.478 | O155: 72 | P155: 19:49:21.490 | Q155: 10.79067263 | R155: 0 | S155: 10.79067263
C156: 03/15/2011 | D156: 06:35:18 | E156: 19:50:18.849 | F156: 10.74948646 | G156: 10219 | H156: =IF($B$10=1,IF(MATCH($L156,DATE(YEAR($L156),{1,3,11},{1,15,8})-WEEKDAY(DATE(YEAR($L156),{1,3,11},7)))=2,1,0),0) -> 1 | I156: 1.118273712 | J156: 19:50:18.849 | K156: 13:35:17.507 | L156: 2011-03-15 | M156: 07:20:59.111 | N156: 19:09:42.676 | O156: 73 | P156: 19:50:18.849 | Q156: 10.74934963 | R156: 0 | S156: 10.74934963
C157: 03/16/2011 | D157: 06:33:46 | E157: 19:51:16.186 | F157: 10.70800376 | G157: 10276 | H157: =IF($B$10=1,IF(MATCH($L157,DATE(YEAR($L157),{1,3,11},{1,15,8})-WEEKDAY(DATE(YEAR($L157),{1,3,11},7)))=2,1,0),0) -> 1 | I157: 1.118937343 | J157: 19:51:16.186 | K157: 13:33:45.684 | L157: 2011-03-16 | M157: 07:19:27.955 | N157: 19:10:39.664 | O157: 74 | P157: 19:51:16.186 | Q157: 10.70791607 | R157: 0 | S157: 10.70791607
C158: 03/17/2011 | D158: 06:32:13 | E158: 19:52:13.514 | F158: 10.66624612 | G158: 10334 | H158: =IF($B$10=1,IF(MATCH($L158,DATE(YEAR($L158),{1,3,11},{1,15,8})-WEEKDAY(DATE(YEAR($L158),{1,3,11},7)))=2,1,0),0) -> 1 | I158: 1.119600856 | J158: 19:52:13.514 | K158: 13:32:13.472 | L158: 2011-03-17 | M158: 07:17:56.623 | N158: 19:11:36.453 | O158: 75 | P158: 19:52:13.514 | Q158: 10.66637713 | R158: 0 | S158: 10.66637713
C159: 03/18/2011 | D159: 06:30:41 | E159: 19:53:10.842 | F159: 10.62476602 | G159: 10391 | H159: =IF($B$10=1,IF(MATCH($L159,DATE(YEAR($L159),{1,3,11},{1,15,8})-WEEKDAY(DATE(YEAR($L159),{1,3,11},7)))=2,1,0),0) -> 1 | I159: 1.120264379 | J159: 19:53:10.842 | K159: 13:30:40.899 | L159: 2011-03-18 | M159: 07:16:25.145 | N159: 19:12:33.053 | O159: 76 | P159: 19:53:10.842 | Q159: 10.624738 | R159: 0 | S159: 10.624738
C160: 03/19/2011 | D160: 06:29:08 | E160: 19:54:08.183 | F160: 10.58300482 | G160: 10448 | H160: =IF($B$10=1,IF(MATCH($L160,DATE(YEAR($L160),{1,3,11},{1,15,8})-WEEKDAY(DATE(YEAR($L160),{1,3,11},7)))=2,1,0),0) -> 1 | I160: 1.12092804 | J160: 19:54:08.183 | K160: 13:29:07.997 | L160: 2011-03-19 | M160: 07:14:53.552 | N160: 19:13:29.474 | O160: 77 | P160: 19:54:08.183 | Q160: 10.58300385 | R160: 0 | S160: 10.58300385
C161: 03/20/2011 | D161: 06:27:35 | E161: 19:55:05.546 | F161: 10.54123725 | G161: 10506 | H161: =IF($B$10=1,IF(MATCH($L161,DATE(YEAR($L161),{1,3,11},{1,15,8})-WEEKDAY(DATE(YEAR($L161),{1,3,11},7)))=2,1,0),0) -> 1 | I161: 1.121591967 | J161: 19:55:05.546 | K161: 13:27:34.793 | L161: 2011-03-20 | M161: 07:13:21.873 | N161: 19:14:25.729 | O161: 78 | P161: 19:55:05.546 | Q161: 10.54117987 | R161: 0 | S161: 10.54117987
C162: 03/21/2011 | D162: 06:26:01 | E162: 19:56:02.943 | F162: 10.4991825 | G162: 10563 | H162: =IF($B$10=1,IF(MATCH($L162,DATE(YEAR($L162),{1,3,11},{1,15,8})-WEEKDAY(DATE(YEAR($L162),{1,3,11},7)))=2,1,0),0) -> 1 | I162: 1.122256285 | J162: 19:56:02.943 | K162: 13:26:01.320 | L162: 2011-03-21 | M162: 07:11:50.138 | N162: 19:15:21.827 | O162: 79 | P162: 19:56:02.943 | Q162: 10.49927127 | R162: 0 | S162: 10.49927127
C163: 03/22/2011 | D163: 06:24:28 | E163: 19:57:00.385 | F163: 10.45739315 | G163: 10620 | H163: =IF($B$10=1,IF(MATCH($L163,DATE(YEAR($L163),{1,3,11},{1,15,8})-WEEKDAY(DATE(YEAR($L163),{1,3,11},7)))=2,1,0),0) -> 1 | I163: 1.122921119 | J163: 19:57:00.385 | K163: 13:24:27.605 | L163: 2011-03-22 | M163: 07:10:18.377 | N163: 19:16:17.778 | O163: 80 | P163: 19:57:00.385 | Q163: 10.45728329 | R163: 0 | S163: 10.45728329
C164: 03/23/2011 | D164: 06:22:54 | E164: 19:57:57.882 | F164: 10.41531069 | G164: 10678 | H164: =IF($B$10=1,IF(MATCH($L164,DATE(YEAR($L164),{1,3,11},{1,15,8})-WEEKDAY(DATE(YEAR($L164),{1,3,11},7)))=2,1,0),0) -> 1 | I164: 1.123586592 | J164: 19:57:57.882 | K164: 13:22:53.678 | L164: 2011-03-23 | M164: 07:08:46.620 | N164: 19:17:13.595 | O164: 81 | P164: 19:57:57.882 | Q164: 10.41522122 | R164: 0 | S164: 10.41522122
C165: 03/24/2011 | D165: 06:21:20 | E165: 19:58:55.444 | F165: 10.37321 | G165: 10735 | H165: =IF($B$10=1,IF(MATCH($L165,DATE(YEAR($L165),{1,3,11},{1,15,8})-WEEKDAY(DATE(YEAR($L165),{1,3,11},7)))=2,1,0),0) -> 1 | I165: 1.124252824 | J165: 19:58:55.444 | K165: 13:21:19.569 | L165: 2011-03-24 | M165: 07:07:14.896 | N165: 19:18:09.286 | O165: 82 | P165: 19:58:55.444 | Q165: 10.37309041 | R165: 0 | S165: 10.37309041
C166: 03/25/2011 | D166: 06:19:45 | E166: 19:59:53.082 | F166: 10.33081048 | G166: 10793 | H166: =IF($B$10=1,IF(MATCH($L166,DATE(YEAR($L166),{1,3,11},{1,15,8})-WEEKDAY(DATE(YEAR($L166),{1,3,11},7)))=2,1,0),0) -> 1 | I166: 1.124919934 | J166: 19:59:53.082 | K166: 13:19:45.309 | L166: 2011-03-25 | M166: 07:05:43.235 | N166: 19:19:04.863 | O166: 83 | P166: 19:59:53.082 | Q166: 10.33089627 | R166: 0 | S166: 10.33089627
C167: 03/26/2011 | D167: 06:18:11 | E167: 20:00:50.806 | F167: 10.28866492 | G167: 10851 | H167: =IF($B$10=1,IF(MATCH($L167,DATE(YEAR($L167),{1,3,11},{1,15,8})-WEEKDAY(DATE(YEAR($L167),{1,3,11},7)))=2,1,0),0) -> 1 | I167: 1.125588036 | J167: 20:00:50.806 | K167: 13:18:10.926 | L167: 2011-03-26 | M167: 07:04:11.666 | N167: 19:20:00.336 | O167: 84 | P167: 20:00:50.806 | Q167: 10.2886443 | R167: 0 | S167: 10.2886443
C168: 03/27/2011 | D168: 06:16:36 | E168: 20:01:48.626 | F168: 10.24621509 | G168: 10909 | H168: =IF($B$10=1,IF(MATCH($L168,DATE(YEAR($L168),{1,3,11},{1,15,8})-WEEKDAY(DATE(YEAR($L168),{1,3,11},7)))=2,1,0),0) -> 1 | I168: 1.126257242 | J168: 20:01:48.626 | K168: 13:16:36.450 | L168: 2011-03-27 | M168: 07:02:40.218 | N168: 19:20:55.714 | O168: 85 | P168: 20:01:48.626 | Q168: 10.24634009 | R168: 0 | S168: 10.24634009
C169: 03/28/2011 | D169: 06:15:02 | E169: 20:02:46.550 | F169: 10.20401396 | G169: 10967 | H169: =IF($B$10=1,IF(MATCH($L169,DATE(YEAR($L169),{1,3,11},{1,15,8})-WEEKDAY(DATE(YEAR($L169),{1,3,11},7)))=2,1,0),0) -> 1 | I169: 1.126927659 | J169: 20:02:46.550 | K169: 13:15:01.911 | L169: 2011-03-28 | M169: 07:01:08.921 | N169: 19:21:51.008 | O169: 86 | P169: 20:02:46.550 | Q169: 10.20398932 | R169: 0 | S169: 10.20398932
C170: 03/29/2011 | D170: 06:13:27 | E170: 20:03:44.588 | F170: 10.16150346 | G170: 11025 | H170: =IF($B$10=1,IF(MATCH($L170,DATE(YEAR($L170),{1,3,11},{1,15,8})-WEEKDAY(DATE(YEAR($L170),{1,3,11},7)))=2,1,0),0) -> 1 | I170: 1.127599393 | J170: 20:03:44.588 | K170: 13:13:27.340 | L170: 2011-03-29 | M170: 06:59:37.805 | N170: 19:22:46.227 | O170: 87 | P170: 20:03:44.588 | Q170: 10.16159779 | R170: 0 | S170: 10.16159779
C171: 03/30/2011 | D171: 06:11:53 | E171: 20:04:42.748 | F171: 10.11923678 | G171: 11083 | H171: =IF($B$10=1,IF(MATCH($L171,DATE(YEAR($L171),{1,3,11},{1,15,8})-WEEKDAY(DATE(YEAR($L171),{1,3,11},7)))=2,1,0),0) -> 1 | I171: 1.128272542 | J171: 20:04:42.748 | K171: 13:11:52.765 | L171: 2011-03-30 | M171: 06:58:06.897 | N171: 19:23:41.380 | O171: 88 | P171: 20:04:42.748 | Q171: 10.11917145 | R171: 0 | S171: 10.11917145
C172: 03/31/2011 | D172: 06:10:18 | E172: 20:05:41.038 | F172: 10.07665606 | G172: 11141 | H172: =IF($B$10=1,IF(MATCH($L172,DATE(YEAR($L172),{1,3,11},{1,15,8})-WEEKDAY(DATE(YEAR($L172),{1,3,11},7)))=2,1,0),0) -> 1 | I172: 1.128947201 | J172: 20:05:41.038 | K172: 13:10:18.217 | L172: 2011-03-31 | M172: 06:56:36.228 | N172: 19:24:36.478 | O172: 89 | P172: 20:05:41.038 | Q172: 10.07671635 | R172: 0 | S172: 10.07671635
C173: 04/01/2011 | D173: 06:08:44 | E173: 20:06:39.467 | F173: 10.03431472 | G173: 11199 | H173: =IF($B$10=1,IF(MATCH($L173,DATE(YEAR($L173),{1,3,11},{1,15,8})-WEEKDAY(DATE(YEAR($L173),{1,3,11},7)))=2,1,0),0) -> 1 | I173: 1.129623461 | J173: 20:06:39.467 | K173: 13:08:43.726 | L173: 2011-04-01 | M173: 06:55:05.826 | N173: 19:25:31.527 | O173: 90 | P173: 20:06:39.467 | Q173: 10.03423873 | R173: 0 | S173: 10.03423873
C174: 04/02/2011 | D174: 06:07:09 | E174: 20:07:38.041 | F174: 9.991655173 | G174: 11258 | H174: =IF($B$10=1,IF(MATCH($L174,DATE(YEAR($L174),{1,3,11},{1,15,8})-WEEKDAY(DATE(YEAR($L174),{1,3,11},7)))=2,1,0),0) -> 1 | I174: 1.130301405 | J174: 20:07:38.041 | K174: 13:07:09.323 | L174: 2011-04-02 | M174: 06:53:35.721 | N174: 19:26:26.536 | O174: 91 | P174: 20:07:38.041 | Q174: 9.991744973 | R174: 0 | S174: 9.991744973
C175: 04/03/2011 | D175: 06:05:35 | E175: 20:08:36.768 | F175: 9.949231086 | G175: 11317 | H175: =IF($B$10=1,IF(MATCH($L175,DATE(YEAR($L175),{1,3,11},{1,15,8})-WEEKDAY(DATE(YEAR($L175),{1,3,11},7)))=2,1,0),0) -> 1 | I175: 1.130981112 | J175: 20:08:36.768 | K175: 13:05:35.038 | L175: 2011-04-03 | M175: 06:52:05.942 | N175: 19:27:21.514 | O175: 92 | P175: 20:08:36.768 | Q175: 9.949241627 | R175: 0 | S175: 9.949241627
C176: 04/04/2011 | D176: 06:04:01 | E176: 20:09:35.653 | F176: 9.906762945 | G176: 11376 | H176: =IF($B$10=1,IF(MATCH($L176,DATE(YEAR($L176),{1,3,11},{1,15,8})-WEEKDAY(DATE(YEAR($L176),{1,3,11},7)))=2,1,0),0) -> 1 | I176: 1.131662655 | J176: 20:09:35.653 | K176: 13:04:00.901 | L176: 2011-04-04 | M176: 06:50:36.518 | N176: 19:28:16.468 | O176: 93 | P176: 20:09:35.653 | Q176: 9.906735443 | R176: 0 | S176: 9.906735443
C177: 04/05/2011 | D177: 06:02:27 | E177: 20:10:34.703 | F177: 9.864249167 | G177: 11435 | H177: =IF($B$10=1,IF(MATCH($L177,DATE(YEAR($L177),{1,3,11},{1,15,8})-WEEKDAY(DATE(YEAR($L177),{1,3,11},7)))=2,1,0),0) -> 1 | I177: 1.1323461 | J177: 20:10:34.703 | K177: 13:02:26.943 | L177: 2011-04-05 | M177: 06:49:07.478 | N177: 19:29:11.405 | O177: 94 | P177: 20:10:34.703 | Q177: 9.864233363 | R177: 0 | S177: 9.864233363
C178: 04/06/2011 | D178: 06:00:53 | E178: 20:11:33.922 | F178: 9.821688334 | G178: 11494 | H178: =IF($B$10=1,IF(MATCH($L178,DATE(YEAR($L178),{1,3,11},{1,15,8})-WEEKDAY(DATE(YEAR($L178),{1,3,11},7)))=2,1,0),0) -> 1 | I178: 1.133031505 | J178: 20:11:33.922 | K178: 13:00:53.195 | L178: 2011-04-06 | M178: 06:47:38.851 | N178: 19:30:06.332 | O178: 95 | P178: 20:11:33.922 | Q178: 9.82174254 | R178: 0 | S178: 9.82174254
C179: 04/07/2011 | D179: 05:59:20 | E179: 20:12:33.315 | F179: 9.779356981 | G179: 11553 | H179: =IF($B$10=1,IF(MATCH($L179,DATE(YEAR($L179),{1,3,11},{1,15,8})-WEEKDAY(DATE(YEAR($L179),{1,3,11},7)))=2,1,0),0) -> 1 | I179: 1.133718922 | J179: 20:12:33.315 | K179: 12:59:19.688 | L179: 2011-04-07 | M179: 06:46:10.666 | N179: 19:31:01.255 | O179: 96 | P179: 20:12:33.315 | Q179: 9.779270348 | R179: 0 | S179: 9.779270348
C180: 04/08/2011 | D180: 05:57:46 | E180: 20:13:32.885 | F180: 9.736698491 | G180: 11613 | H180: =IF($B$10=1,IF(MATCH($L180,DATE(YEAR($L180),{1,3,11},{1,15,8})-WEEKDAY(DATE(YEAR($L180),{1,3,11},7)))=2,1,0),0) -> 1 | I180: 1.134408396 | J180: 20:13:32.885 | K180: 12:57:46.453 | L180: 2011-04-08 | M180: 06:44:42.953 | N180: 19:31:56.178 | O180: 97 | P180: 20:13:32.885 | Q180: 9.736824396 | R180: 0 | S180: 9.736824396
C181: 04/09/2011 | D181: 05:56:14 | E181: 20:14:32.637 | F181: 9.694545327 | G181: 11673 | H181: =IF($B$10=1,IF(MATCH($L181,DATE(YEAR($L181),{1,3,11},{1,15,8})-WEEKDAY(DATE(YEAR($L181),{1,3,11},7)))=2,1,0),0) -> 1 | I181: 1.135099963 | J181: 20:14:32.637 | K181: 12:56:13.522 | L181: 2011-04-09 | M181: 06:43:15.741 | N181: 19:32:51.109 | O181: 98 | P181: 20:14:32.637 | Q181: 9.694412536 | R181: 0 | S181: 9.694412536
C182: 04/10/2011 | D182: 05:54:41 | E182: 20:15:32.571 | F182: 9.652063487 | G182: 11733 | H182: =IF($B$10=1,IF(MATCH($L182,DATE(YEAR($L182),{1,3,11},{1,15,8})-WEEKDAY(DATE(YEAR($L182),{1,3,11},7)))=2,1,0),0) -> 1 | I182: 1.135793651 | J182: 20:15:32.571 | K182: 12:54:40.926 | L182: 2011-04-10 | M182: 06:41:49.059 | N182: 19:33:46.050 | O182: 99 | P182: 20:15:32.571 | Q182: 9.652042875 | R182: 0 | S182: 9.652042875
C183: 04/11/2011 | D183: 05:53:09 | E183: 20:16:32.691 | F183: 9.609808068 | G183: 11793 | H183: =IF($B$10=1,IF(MATCH($L183,DATE(YEAR($L183),{1,3,11},{1,15,8})-WEEKDAY(DATE(YEAR($L183),{1,3,11},7)))=2,1,0),0) -> 1 | I183: 1.136489479 | J183: 20:16:32.691 | K183: 12:53:08.697 | L183: 2011-04-11 | M183: 06:40:22.937 | N183: 19:34:41.006 | O183: 100 | P183: 20:16:32.691 | Q183: 9.609723792 | R183: 0 | S183: 9.609723792
C184: 04/12/2011 | D184: 05:51:37 | E184: 20:17:32.996 | F184: 9.56750105 | G184: 11853 | H184: =IF($B$10=1,IF(MATCH($L184,DATE(YEAR($L184),{1,3,11},{1,15,8})-WEEKDAY(DATE(YEAR($L184),{1,3,11},7)))=2,1,0),0) -> 1 | I184: 1.137187456 | J184: 20:17:32.996 | K184: 12:51:36.866 | L184: 2011-04-12 | M184: 06:38:57.403 | N184: 19:35:35.980 | O184: 101 | P184: 20:17:32.996 | Q184: 9.567463939 | R184: 0 | S184: 9.567463939
C185: 04/13/2011 | D185: 05:50:05 | E185: 20:18:33.487 | F185: 9.525142421 | G185: 11913 | H185: =IF($B$10=1,IF(MATCH($L185,DATE(YEAR($L185),{1,3,11},{1,15,8})-WEEKDAY(DATE(YEAR($L185),{1,3,11},7)))=2,1,0),0) -> 1 | I185: 1.137887584 | J185: 20:18:33.487 | K185: 12:50:05.467 | L185: 2011-04-13 | M185: 06:37:32.487 | N185: 19:36:30.974 | O185: 102 | P185: 20:18:33.487 | Q185: 9.525272262 | R185: 0 | S185: 9.525272262
C186: 04/14/2011 | D186: 05:48:35 | E186: 20:19:34.163 | F186: 9.483287958 | G186: 11974 | H186: =IF($B$10=1,IF(MATCH($L186,DATE(YEAR($L186),{1,3,11},{1,15,8})-WEEKDAY(DATE(YEAR($L186),{1,3,11},7)))=2,1,0),0) -> 1 | I186: 1.138589854 | J186: 20:19:34.163 | K186: 12:48:34.532 | L186: 2011-04-14 | M186: 06:36:08.219 | N186: 19:37:25.991 | O186: 103 | P186: 20:19:34.163 | Q186: 9.483158006 | R186: 0 | S186: 9.483158006
C187: 04/15/2011 | D187: 05:47:04 | E187: 20:20:35.023 | F187: 9.441104798 | G187: 12035 | H187: =IF($B$10=1,IF(MATCH($L187,DATE(YEAR($L187),{1,3,11},{1,15,8})-WEEKDAY(DATE(YEAR($L187),{1,3,11},7)))=2,1,0),0) -> 1 | I187: 1.139294245 | J187: 20:20:35.023 | K187: 12:47:04.093 | L187: 2011-04-15 | M187: 06:34:44.628 | N187: 19:38:21.032 | O187: 104 | P187: 20:20:35.023 | Q187: 9.441130726 | R187: 0 | S187: 9.441130726
C188: 04/16/2011 | D188: 05:45:34 | E188: 20:21:36.063 | F188: 9.399149221 | G188: 12096 | H188: =IF($B$10=1,IF(MATCH($L188,DATE(YEAR($L188),{1,3,11},{1,15,8})-WEEKDAY(DATE(YEAR($L188),{1,3,11},7)))=2,1,0),0) -> 1 | I188: 1.140000727 | J188: 20:21:36.063 | K188: 12:45:34.184 | L188: 2011-04-16 | M188: 06:33:21.744 | N188: 19:39:16.097 | O188: 105 | P188: 20:21:36.063 | Q188: 9.399200299 | R188: 0 | S188: 9.399200299
C189: 04/17/2011 | D189: 05:44:05 | E189: 20:22:37.280 | F189: 9.357422213 | G189: 12157 | H189: =IF($B$10=1,IF(MATCH($L189,DATE(YEAR($L189),{1,3,11},{1,15,8})-WEEKDAY(DATE(YEAR($L189),{1,3,11},7)))=2,1,0),0) -> 1 | I189: 1.14070926 | J189: 20:22:37.280 | K189: 12:44:04.837 | L189: 2011-04-17 | M189: 06:31:59.596 | N189: 19:40:11.185 | O189: 106 | P189: 20:22:37.280 | Q189: 9.357376932 | R189: 0 | S189: 9.357376932
C190: 04/18/2011 | D190: 05:42:36 | E190: 20:23:38.670 | F190: 9.315647257 | G190: 12219 | H190: =IF($B$10=1,IF(MATCH($L190,DATE(YEAR($L190),{1,3,11},{1,15,8})-WEEKDAY(DATE(YEAR($L190),{1,3,11},7)))=2,1,0),0) -> 1 | I190: 1.14141979 | J190: 20:23:38.670 | K190: 12:42:36.086 | L190: 2011-04-18 | M190: 06:30:38.213 | N190: 19:41:06.297 | O190: 107 | P190: 20:23:38.670 | Q190: 9.315671174 | R190: 0 | S190: 9.315671174
C191: 04/19/2011 | D191: 05:41:08 | E191: 20:24:40.227 | F191: 9.274103675 | G191: 12280 | H191: =IF($B$10=1,IF(MATCH($L191,DATE(YEAR($L191),{1,3,11},{1,15,8})-WEEKDAY(DATE(YEAR($L191),{1,3,11},7)))=2,1,0),0) -> 1 | I191: 1.142132254 | J191: 20:24:40.227 | K191: 12:41:07.965 | L191: 2011-04-19 | M191: 06:29:17.626 | N191: 19:42:01.429 | O191: 108 | P191: 20:24:40.227 | Q191: 9.274093922 | R191: 0 | S191: 9.274093922
C192: 04/20/2011 | D192: 05:39:41 | E192: 20:25:41.944 | F192: 9.232793297 | G192: 12342 | H192: =IF($B$10=1,IF(MATCH($L192,DATE(YEAR($L192),{1,3,11},{1,15,8})-WEEKDAY(DATE(YEAR($L192),{1,3,11},7)))=2,1,0),0) -> 1 | I192: 1.142846576 | J192: 20:25:41.944 | K192: 12:39:40.507 | L192: 2011-04-20 | M192: 06:27:57.863 | N192: 19:42:56.579 | O192: 109 | P192: 20:25:41.944 | Q192: 9.232656431 | R192: 0 | S192: 9.232656431
C193: 04/21/2011 | D193: 05:38:14 | E193: 20:26:43.814 | F193: 9.191440478 | G193: 12404 | H193: =IF($B$10=1,IF(MATCH($L193,DATE(YEAR($L193),{1,3,11},{1,15,8})-WEEKDAY(DATE(YEAR($L193),{1,3,11},7)))=2,1,0),0) -> 1 | I193: 1.143562665 | J193: 20:26:43.814 | K193: 12:38:13.747 | L193: 2011-04-21 | M193: 06:26:38.954 | N193: 19:43:51.743 | O193: 110 | P193: 20:26:43.814 | Q193: 9.191370325 | R193: 0 | S193: 9.191370325
C194: 04/22/2011 | D194: 05:36:48 | E194: 20:27:45.828 | F194: 9.150325435 | G194: 12466 | H194: =IF($B$10=1,IF(MATCH($L194,DATE(YEAR($L194),{1,3,11},{1,15,8})-WEEKDAY(DATE(YEAR($L194),{1,3,11},7)))=2,1,0),0) -> 1 | I194: 1.144280422 | J194: 20:27:45.828 | K194: 12:36:47.720 | L194: 2011-04-22 | M194: 06:25:20.930 | N194: 19:44:46.917 | O194: 111 | P194: 20:27:45.828 | Q194: 9.150247598 | R194: 0 | S194: 9.150247598
C195: 04/23/2011 | D195: 05:35:22 | E195: 20:28:47.977 | F195: 9.109173143 | G195: 12528 | H195: =IF($B$10=1,IF(MATCH($L195,DATE(YEAR($L195),{1,3,11},{1,15,8})-WEEKDAY(DATE(YEAR($L195),{1,3,11},7)))=2,1,0),0) -> 1 | I195: 1.14499973 | J195: 20:28:47.977 | K195: 12:35:22.459 | L195: 2011-04-23 | M195: 06:24:03.819 | N195: 19:45:42.095 | O195: 112 | P195: 20:28:47.977 | Q195: 9.109300628 | R195: 0 | S195: 9.109300628
C196: 04/24/2011 | D196: 05:33:58 | E196: 20:29:50.248 | F196: 9.068542238 | G196: 12590 | H196: =IF($B$10=1,IF(MATCH($L196,DATE(YEAR($L196),{1,3,11},{1,15,8})-WEEKDAY(DATE(YEAR($L196),{1,3,11},7)))=2,1,0),0) -> 1 | I196: 1.145720462 | J196: 20:29:50.248 | K196: 12:33:58 | L196: 2011-04-24 | M196: 06:22:47.651 | N196: 19:46:37.271 | O196: 113 | P196: 20:29:50.248 | Q196: 9.068542178 | R196: 0 | S196: 9.068542178
C197: 04/25/2011 | D197: 05:32:34 | E197: 20:30:52.630 | F197: 9.027880572 | G197: 12653 | H197: =IF($B$10=1,IF(MATCH($L197,DATE(YEAR($L197),{1,3,11},{1,15,8})-WEEKDAY(DATE(YEAR($L197),{1,3,11},7)))=2,1,0),0) -> 1 | I197: 1.146442476 | J197: 20:30:52.630 | K197: 12:32:34.377 | L197: 2011-04-25 | M197: 06:21:32.455 | N197: 19:47:32.437 | O197: 114 | P197: 20:30:52.630 | Q197: 9.027985406 | R197: 0 | S197: 9.027985406
C198: 04/26/2011 | D198: 05:31:12 | E198: 20:31:55.109 | F198: 8.987747448 | G198: 12715 | H198: =IF($B$10=1,IF(MATCH($L198,DATE(YEAR($L198),{1,3,11},{1,15,8})-WEEKDAY(DATE(YEAR($L198),{1,3,11},7)))=2,1,0),0) -> 1 | I198: 1.147165616 | J198: 20:31:55.109 | K198: 12:31:11.627 | L198: 2011-04-26 | M198: 06:20:18.262 | N198: 19:48:27.586 | O198: 115 | P198: 20:31:55.109 | Q198: 8.987643864 | R198: 0 | S198: 8.987643864
C199: 04/27/2011 | D199: 05:29:50 | E199: 20:32:57.671 | F199: 8.947591403 | G199: 12778 | H199: =IF($B$10=1,IF(MATCH($L199,DATE(YEAR($L199),{1,3,11},{1,15,8})-WEEKDAY(DATE(YEAR($L199),{1,3,11},7)))=2,1,0),0) -> 1 | I199: 1.14788971 | J199: 20:32:57.671 | K199: 12:29:49.784 | L199: 2011-04-27 | M199: 06:19:05.099 | N199: 19:49:22.707 | O199: 116 | P199: 20:32:57.671 | Q199: 8.947531508 | R199: 0 | S199: 8.947531508
C200: 04/28/2011 | D200: 05:28:29 | E200: 20:34:00.299 | F200: 8.907694659 | G200: 12840 | H200: =IF($B$10=1,IF(MATCH($L200,DATE(YEAR($L200),{1,3,11},{1,15,8})-WEEKDAY(DATE(YEAR($L200),{1,3,11},7)))=2,1,0),0) -> 1 | I200: 1.148614574 | J200: 20:34:00.299 | K200: 12:28:28.885 | L200: 2011-04-28 | M200: 06:17:52.997 | N200: 19:50:17.790 | O200: 117 | P200: 20:34:00.299 | Q200: 8.907662699 | R200: 0 | S200: 8.907662699
C201: 04/29/2011 | D201: 05:27:09 | E201: 20:35:02.977 | F201: 8.868062017 | G201: 12903 | H201: =IF($B$10=1,IF(MATCH($L201,DATE(YEAR($L201),{1,3,11},{1,15,8})-WEEKDAY(DATE(YEAR($L201),{1,3,11},7)))=2,1,0),0) -> 1 | I201: 1.149340009 | J201: 20:35:02.977 | K201: 12:27:08.965 | L201: 2011-04-29 | M201: 06:16:41.984 | N201: 19:51:12.825 | O201: 118 | P201: 20:35:02.977 | Q201: 8.868052201 | R201: 0 | S201: 8.868052201
C202: 04/30/2011 | D202: 05:25:50 | E202: 20:36:05.685 | F202: 8.828698641 | G202: 12966 | H202: =IF($B$10=1,IF(MATCH($L202,DATE(YEAR($L202),{1,3,11},{1,15,8})-WEEKDAY(DATE(YEAR($L202),{1,3,11},7)))=2,1,0),0) -> 1 | I202: 1.150065797 | J202: 20:36:05.685 | K202: 12:25:50.060 | L202: 2011-04-30 | M202: 06:15:32.090 | N202: 19:52:07.798 | O202: 119 | P202: 20:36:05.685 | Q202: 8.828715189 | R202: 0 | S202: 8.828715189
C203: 05/01/2011 | D203: 05:24:32 | E203: 20:37:08.404 | F203: 8.789610064 | G203: 13028 | H203: =IF($B$10=1,IF(MATCH($L203,DATE(YEAR($L203),{1,3,11},{1,15,8})-WEEKDAY(DATE(YEAR($L203),{1,3,11},7)))=2,1,0),0) -> 1 | I203: 1.15079171 | J203: 20:37:08.404 | K203: 12:24:32.206 | L203: 2011-05-01 | M203: 06:14:23.343 | N203: 19:53:02.696 | O203: 120 | P203: 20:37:08.404 | Q203: 8.789667241 | R203: 0 | S203: 8.789667241
C204: 05/02/2011 | D204: 05:23:15 | E204: 20:38:11.112 | F204: 8.750802188 | G204: 13091 | H204: =IF($B$10=1,IF(MATCH($L204,DATE(YEAR($L204),{1,3,11},{1,15,8})-WEEKDAY(DATE(YEAR($L204),{1,3,11},7)))=2,1,0),0) -> 1 | I204: 1.151517501 | J204: 20:38:11.112 | K204: 12:23:15.440 | L204: 2011-05-02 | M204: 06:13:15.773 | N204: 19:53:57.504 | O204: 121 | P204: 20:38:11.112 | Q204: 8.750924344 | R204: 0 | S204: 8.750924344
C205: 05/03/2011 | D205: 05:22:00 | E205: 20:39:13.787 | F205: 8.71255907 | G205: 13154 | H205: =IF($B$10=1,IF(MATCH($L205,DATE(YEAR($L205),{1,3,11},{1,15,8})-WEEKDAY(DATE(YEAR($L205),{1,3,11},7)))=2,1,0),0) -> 1 | I205: 1.152242909 | J205: 20:39:13.787 | K205: 12:21:59.798 | L205: 2011-05-03 | M205: 06:12:09.406 | N205: 19:54:52.207 | O205: 122 | P205: 20:39:13.787 | Q205: 8.712502884 | R205: 0 | S205: 8.712502884
C206: 05/04/2011 | D206: 05:20:45 | E206: 20:40:16.405 | F206: 8.67433181 | G206: 13216 | H206: =IF($B$10=1,IF(MATCH($L206,DATE(YEAR($L206),{1,3,11},{1,15,8})-WEEKDAY(DATE(YEAR($L206),{1,3,11},7)))=2,1,0),0) -> 1 | I206: 1.152967656 | J206: 20:40:16.405 | K206: 12:20:45.316 | L206: 2011-05-04 | M206: 06:11:04.273 | N206: 19:55:46.788 | O206: 123 | P206: 20:40:16.405 | Q206: 8.674419649 | R206: 0 | S206: 8.674419649
C207: 05/05/2011 | D207: 05:19:32 | E207: 20:41:18.941 | F207: 8.636682998 | G207: 13279 | H207: =IF($B$10=1,IF(MATCH($L207,DATE(YEAR($L207),{1,3,11},{1,15,8})-WEEKDAY(DATE(YEAR($L207),{1,3,11},7)))=2,1,0),0) -> 1 | I207: 1.153691449 | J207: 20:41:18.941 | K207: 12:19:32.032 | L207: 2011-05-05 | M207: 06:10:00.399 | N207: 19:56:41.229 | O207: 124 | P207: 20:41:18.941 | Q207: 8.636691818 | R207: 0 | S207: 8.636691818
C208: 05/06/2011 | D208: 05:18:20 | E208: 20:42:21.368 | F208: 8.599342271 | G208: 13341 | H208: =IF($B$10=1,IF(MATCH($L208,DATE(YEAR($L208),{1,3,11},{1,15,8})-WEEKDAY(DATE(YEAR($L208),{1,3,11},7)))=2,1,0),0) -> 1 | I208: 1.154413979 | J208: 20:42:21.368 | K208: 12:18:19.981 | L208: 2011-05-06 | M208: 06:08:57.814 | N208: 19:57:35.511 | O208: 125 | P208: 20:42:21.368 | Q208: 8.599336956 | R208: 0 | S208: 8.599336956
C209: 05/07/2011 | D209: 05:17:09 | E209: 20:43:23.657 | F209: 8.562317426 | G209: 13404 | H209: =IF($B$10=1,IF(MATCH($L209,DATE(YEAR($L209),{1,3,11},{1,15,8})-WEEKDAY(DATE(YEAR($L209),{1,3,11},7)))=2,1,0),0) -> 1 | I209: 1.155134922 | J209: 20:43:23.657 | K209: 12:17:09.200 | L209: 2011-05-07 | M209: 06:07:56.545 | N209: 19:58:29.613 | O209: 126 | P209: 20:43:23.657 | Q209: 8.562373003 | R209: 0 | S209: 8.562373003
C210: 05/08/2011 | D210: 05:16:00 | E210: 20:44:25.780 | F210: 8.525894412 | G210: 13466 | H210: =IF($B$10=1,IF(MATCH($L210,DATE(YEAR($L210),{1,3,11},{1,15,8})-WEEKDAY(DATE(YEAR($L210),{1,3,11},7)))=2,1,0),0) -> 1 | I210: 1.155853937 | J210: 20:44:25.780 | K210: 12:15:59.726 | L210: 2011-05-08 | M210: 06:06:56.617 | N210: 19:59:23.515 | O210: 127 | P210: 20:44:25.780 | Q210: 8.525818268 | R210: 0 | S210: 8.525818268
C211: =TEXT(L211,"mm/dd/yyyy") -> 05/09/2011 | D211: =TEXT(dawn($B$4,$B$5,YEAR($C211+1),MONTH($C211+1),DAY($C211+1),$B$9,$H211,$D$6),"hh:mm:ss") -> 05:14:52 | E211: =dusk($B$4,$B$5,YEAR(C211),MONTH(C211),DAY(C211),$B$9,$H211,$D$5) -> 20:45:27.706 | F211: =((TIME(23,59,59.999)-E211)+D211)*24 -> 8.489804003 | G211: 13528 | H211: =IF($B$10=1,IF(MATCH($L211,DATE(YEAR($L211),{1,3,11},{1,15,8})-WEEKDAY(DATE(YEAR($L211),{1,3,11},7)))=2,1,0),0) -> 1 | I211: =dusk($B$4,$B$5,YEAR($C211),MONTH($C211),DAY($C211),0,0,$D$5) -> 1.156570667 | J211: =dusk($B$4,$B$5,YEAR($C211),MONTH($C211),DAY($C211),$B$9,$H211,$D$5) -> 20:45:27.706 | K211: 12:14:51.595 | L211: 2011-05-09 | M211: 06:05:58.059 | N211: 20:00:17.195 | O211: 128 | P211: 20:45:27.706 | Q211: 8.489691413 | R211: 0 | S211: 8.489691413
C212: 05/10/2011 | D212: 05:13:45 | E212: 20:46:29.402 | F212: 8.454055122 | G212: =HOUR(E212-$C$77)*3600+MINUTE(E212-$C$77)*60+SECOND(E212-$C$77) -> 13589 | H212: =IF($B$10=1,IF(MATCH($L212,DATE(YEAR($L212),{1,3,11},{1,15,8})-WEEKDAY(DATE(YEAR($L212),{1,3,11},7)))=2,1,0),0) -> 1 | I212: 1.15728474 | J212: 20:46:29.402 | K212: =dawn($B$4,$B$5,YEAR($C212+1),MONTH($C212+1),DAY($C212+1),0,0,$D$6) -> 12:13:44.843 | L212: 2011-05-10 | M212: =dawn($B$4,$B$5,YEAR($C212+1),MONTH($C212+1),DAY($C212+1),$B$9,$H212,0) -> 06:05:00.896 | N212: =dusk($B$4,$B$5,YEAR(C212),MONTH(C212),DAY(C212),$B$9,$H212,0) -> 20:01:10.628 | O212: 129 | P212: =MIN(dusk($B$4,$B$5,YEAR(C212),MONTH(C212),DAY(C212),0,0,$D$5),E212) -> 20:46:29.402 | Q212: =IF(I212>K212,((TIME(23,59,59.999)-I212)+K212)*24,(K212-I212)*24) -> 8.45401144 | R212: =(E212-J212)*24 -> 0 | S212: =(Q212-R212) -> 8.45401144
C213: 05/11/2011 | D213: 05:12:40 | E213: 20:47:30.835 | F213: 8.41893484 | G213: 13651 | H213: =IF($B$10=1,IF(MATCH($L213,DATE(YEAR($L213),{1,3,11},{1,15,8})-WEEKDAY(DATE(YEAR($L213),{1,3,11},7)))=2,1,0),0) -> 1 | I213: 1.157995771 | J213: 20:47:30.835 | K213: 12:12:39.506 | L213: =L212+1 -> 2011-05-11 | M213: 06:04:05.154 | N213: 20:02:03.791 | O213: =O212+1 -> 130 | P213: 20:47:30.835 | Q213: 8.418797676 | R213: 0 | S213: 8.418797676
C214: 05/12/2011 | D214: 05:11:36 | E214: 20:48:31.970 | F214: 8.384175035 | G214: 13712 | H214: =IF($B$10=1,IF(MATCH($L214,DATE(YEAR($L214),{1,3,11},{1,15,8})-WEEKDAY(DATE(YEAR($L214),{1,3,11},7)))=2,1,0),0) -> 1 | I214: 1.158703355 | J214: 20:48:31.970 | K214: 12:11:35.621 | L214: 2011-05-12 | M214: 06:03:10.857 | N214: 20:02:56.659 | O214: 131 | P214: 20:48:31.970 | Q214: 8.384069754 | R214: 0 | S214: 8.384069754
C215: 05/13/2011 | D215: 05:10:33 | E215: 20:49:32.771 | F215: 8.349785718 | G215: 13773 | H215: =IF($B$10=1,IF(MATCH($L215,DATE(YEAR($L215),{1,3,11},{1,15,8})-WEEKDAY(DATE(YEAR($L215),{1,3,11},7)))=2,1,0),0) -> 1 | I215: 1.159407077 | J215: 20:49:32.771 | K215: 12:10:33.223 | L215: 2011-05-13 | M215: 06:02:18.031 | N215: 20:03:49.203 | O215: 132 | P215: 20:49:32.771 | Q215: 8.349847593 | R215: 0 | S215: 8.349847593
C216: 05/14/2011 | D216: 05:09:32 | E216: 20:50:33.202 | F216: 8.316055028 | G216: 13833 | H216: =IF($B$10=1,IF(MATCH($L216,DATE(YEAR($L216),{1,3,11},{1,15,8})-WEEKDAY(DATE(YEAR($L216),{1,3,11},7)))=2,1,0),0) -> 1 | I216: 1.160106503 | J216: 20:50:33.202 | K216: 12:09:32.347 | L216: 2011-05-14 | M216: 06:01:26.700 | N216: 20:04:41.398 | O216: 133 | P216: 20:50:33.202 | Q216: 8.316151378 | R216: 0 | S216: 8.316151378
C217: 05/15/2011 | D217: 05:08:33 | E217: 20:51:33.223 | F217: 8.282993663 | G217: 13893 | H217: =IF($B$10=1,IF(MATCH($L217,DATE(YEAR($L217),{1,3,11},{1,15,8})-WEEKDAY(DATE(YEAR($L217),{1,3,11},7)))=2,1,0),0) -> 1 | I217: 1.16080119 | J217: 20:51:33.223 | K217: 12:08:33.028 | L217: 2011-05-15 | M217: 06:00:36.887 | N217: 20:05:33.213 | O217: 134 | P217: 20:51:33.223 | Q217: 8.283001533 | R217: 0 | S217: 8.283001533
C218: 05/16/2011 | D218: 05:07:35 | E218: 20:52:32.794 | F218: 8.25033487 | G218: 13953 | H218: =IF($B$10=1,IF(MATCH($L218,DATE(YEAR($L218),{1,3,11},{1,15,8})-WEEKDAY(DATE(YEAR($L218),{1,3,11},7)))=2,1,0),0) -> 1 | I218: 1.161490677 | J218: 20:52:32.794 | K218: 12:07:35.302 | L218: 2011-05-16 | M218: 05:59:48.615 | N218: 20:06:24.621 | O218: 135 | P218: 20:52:32.794 | Q218: 8.250418699 | R218: 0 | S218: 8.250418699
C219: 05/17/2011 | D219: 05:06:39 | E219: 20:53:31.876 | F219: 8.218367769 | G219: 14012 | H219: =IF($B$10=1,IF(MATCH($L219,DATE(YEAR($L219),{1,3,11},{1,15,8})-WEEKDAY(DATE(YEAR($L219),{1,3,11},7)))=2,1,0),0) -> 1 | I219: 1.162174491 | J219: 20:53:31.876 | K219: 12:06:39.201 | L219: 2011-05-17 | M219: 05:59:01.907 | N219: 20:07:15.590 | O219: 136 | P219: 20:53:31.876 | Q219: 8.218423701 | R219: 0 | S219: 8.218423701
C220: 05/18/2011 | D220: 05:05:45 | E220: 20:54:30.426 | F220: 8.187104003 | G220: 14070 | H220: =IF($B$10=1,IF(MATCH($L220,DATE(YEAR($L220),{1,3,11},{1,15,8})-WEEKDAY(DATE(YEAR($L220),{1,3,11},7)))=2,1,0),0) -> 1 | I220: 1.162852148 | J220: 20:54:30.426 | K220: 12:05:44.761 | L220: 2011-05-18 | M220: 05:58:16.782 | N220: 20:08:06.088 | O220: 137 | P220: 20:54:30.426 | Q220: 8.187037523 | R220: 0 | S220: 8.187037523
C221: 05/19/2011 | D221: 05:04:52 | E221: 20:55:28.400 | F221: 8.156277723 | G221: 14128 | H221: =IF($B$10=1,IF(MATCH($L221,DATE(YEAR($L221),{1,3,11},{1,15,8})-WEEKDAY(DATE(YEAR($L221),{1,3,11},7)))=2,1,0),0) -> 1 | I221: 1.16352315 | J221: 20:55:28.400 | K221: 12:04:52.013 | L221: 2011-05-19 | M221: 05:57:33.263 | N221: 20:08:56.085 | O221: 138 | P221: 20:55:28.400 | Q221: 8.156281272 | R221: 0 | S221: 8.156281272
C222: 05/20/2011 | D222: 05:04:01 | E222: 20:56:25.756 | F222: 8.126178904 | G222: 14186 | H222: =IF($B$10=1,IF(MATCH($L222,DATE(YEAR($L222),{1,3,11},{1,15,8})-WEEKDAY(DATE(YEAR($L222),{1,3,11},7)))=2,1,0),0) -> 1 | I222: 1.16418699 | J222: 20:56:25.756 | K222: 12:04:00.990 | L222: 2011-05-20 | M222: 05:56:51.368 | N222: 20:09:45.545 | O222: 139 | P222: 20:56:25.756 | Q222: 8.126176144 | R222: 0 | S222: 8.126176144
C223: 05/21/2011 | D223: 05:03:12 | E223: 20:57:22.448 | F223: 8.09682 | G223: 14242 | H223: =IF($B$10=1,IF(MATCH($L223,DATE(YEAR($L223),{1,3,11},{1,15,8})-WEEKDAY(DATE(YEAR($L223),{1,3,11},7)))=2,1,0),0) -> 1 | I223: 1.164843148 | J223: 20:57:22.448 | K223: 12:03:11.724 | L223: 2011-05-21 | M223: 05:56:11.117 | N223: 20:10:34.437 | O223: 140 | P223: 20:57:22.448 | Q223: 8.09674339 | R223: 0 | S223: 8.09674339
C224: 05/22/2011 | D224: 05:02:24 | E224: 20:58:18.431 | F224: 8.067935914 | G224: 14298 | H224: =IF($B$10=1,IF(MATCH($L224,DATE(YEAR($L224),{1,3,11},{1,15,8})-WEEKDAY(DATE(YEAR($L224),{1,3,11},7)))=2,1,0),0) -> 1 | I224: 1.165491096 | J224: 20:58:18.431 | K224: 12:02:24.246 | L224: 2011-05-22 | M224: 05:55:32.528 | N224: 20:11:22.725 | O224: 141 | P224: 20:58:18.431 | Q224: 8.068004274 | R224: 0 | S224: 8.068004274
C225: 05/23/2011 | D225: 05:01:39 | E225: 20:59:13.658 | F225: 8.040095097 | G225: 14354 | H225: =IF($B$10=1,IF(MATCH($L225,DATE(YEAR($L225),{1,3,11},{1,15,8})-WEEKDAY(DATE(YEAR($L225),{1,3,11},7)))=2,1,0),0) -> 1 | I225: 1.166130297 | J225: 20:59:13.658 | K225: 12:01:38.586 | L225: 2011-05-23 | M225: 05:54:55.617 | N225: 20:12:10.373 | O225: 142 | P225: 20:59:13.658 | Q225: 8.039980035 | R225: 0 | S225: 8.039980035
C226: 05/24/2011 | D226: 05:00:55 | E226: 21:00:08.082 | F226: 8.01275508 | G226: 14408 | H226: =IF($B$10=1,IF(MATCH($L226,DATE(YEAR($L226),{1,3,11},{1,15,8})-WEEKDAY(DATE(YEAR($L226),{1,3,11},7)))=2,1,0),0) -> 1 | I226: 1.166760205 | J226: 21:00:08.082 | K226: 12:00:54.772 | L226: 2011-05-24 | M226: 05:54:20.401 | N226: 20:12:57.347 | O226: 143 | P226: 21:00:08.082 | Q226: 8.012691846 | R226: 0 | S226: 8.012691846
C227: 05/25/2011 | D227: 05:00:13 | E227: 21:01:01.655 | F227: 7.986206893 | G227: 14462 | H227: =IF($B$10=1,IF(MATCH($L227,DATE(YEAR($L227),{1,3,11},{1,15,8})-WEEKDAY(DATE(YEAR($L227),{1,3,11},7)))=2,1,0),0) -> 1 | I227: 1.167380268 | J227: 21:01:01.655 | K227: 12:00:12.834 | L227: 2011-05-25 | M227: 05:53:46.895 | N227: 20:13:43.609 | O227: 144 | P227: 21:01:01.655 | Q227: 7.986160765 | R227: 0 | S227: 7.986160765
C228: 05/26/2011 | D228: 04:59:33 | E228: 21:01:54.330 | F228: 7.960463927 | G228: 14514 | H228: =IF($B$10=1,IF(MATCH($L228,DATE(YEAR($L228),{1,3,11},{1,15,8})-WEEKDAY(DATE(YEAR($L228),{1,3,11},7)))=2,1,0),0) -> 1 | I228: 1.167989929 | J228: 21:01:54.330 | K228: 11:59:32.798 | L228: 2011-05-26 | M228: 05:53:15.112 | N228: 20:14:29.123 | O228: 145 | P228: 21:01:54.330 | Q228: 7.960407696 | R228: 0 | S228: 7.960407696
C229: 05/27/2011 | D229: 04:58:55 | E229: 21:02:46.057 | F229: 7.935539695 | G229: 14566 | H229: =IF($B$10=1,IF(MATCH($L229,DATE(YEAR($L229),{1,3,11},{1,15,8})-WEEKDAY(DATE(YEAR($L229),{1,3,11},7)))=2,1,0),0) -> 1 | I229: 1.168588624 | J229: 21:02:46.057 | K229: 11:58:54.689 | L229: 2011-05-27 | M229: 05:52:45.066 | N229: 20:15:13.851 | O229: 146 | P229: 21:02:46.057 | Q229: 7.935453337 | R229: 0 | S229: 7.935453337
C230: 05/28/2011 | D230: 04:58:19 | E230: 21:03:36.788 | F230: 7.911447794 | G230: 14617 | H230: =IF($B$10=1,IF(MATCH($L230,DATE(YEAR($L230),{1,3,11},{1,15,8})-WEEKDAY(DATE(YEAR($L230),{1,3,11},7)))=2,1,0),0) -> 1 | I230: 1.169175786 | J230: 21:03:36.788 | K230: 11:58:18.533 | L230: 2011-05-28 | M230: 05:52:16.768 | N230: 20:15:57.756 | O230: 147 | P230: 21:03:36.788 | Q230: 7.911318134 | R230: 0 | S230: 7.911318134
C231: 05/29/2011 | D231: 04:57:44 | E231: 21:04:26.473 | F231: 7.887924109 | G231: 14666 | H231: =IF($B$10=1,IF(MATCH($L231,DATE(YEAR($L231),{1,3,11},{1,15,8})-WEEKDAY(DATE(YEAR($L231),{1,3,11},7)))=2,1,0),0) -> 1 | I231: 1.169750847 | J231: 21:04:26.473 | K231: 11:57:44.353 | L231: 2011-05-29 | M231: 05:51:50.228 | N231: 20:16:40.799 | O231: 148 | P231: 21:04:26.473 | Q231: 7.888022232 | R231: 0 | S231: 7.888022232
C232: 05/30/2011 | D232: 04:57:12 | E232: 21:05:15.064 | F232: 7.865537889 | G232: 14715 | H232: =IF($B$10=1,IF(MATCH($L232,DATE(YEAR($L232),{1,3,11},{1,15,8})-WEEKDAY(DATE(YEAR($L232),{1,3,11},7)))=2,1,0),0) -> 1 | I232: 1.170313236 | J232: 21:05:15.064 | K232: 11:57:12.171 | L232: 2011-05-30 | M232: 05:51:25.455 | N232: 20:17:22.942 | O232: 149 | P232: 21:05:15.064 | Q232: 7.865585422 | R232: 0 | S232: 7.865585422
C233: 05/31/2011 | D233: 04:56:42 | E233: 21:06:02.510 | F233: 7.844025052 | G233: 14763 | H233: =IF($B$10=1,IF(MATCH($L233,DATE(YEAR($L233),{1,3,11},{1,15,8})-WEEKDAY(DATE(YEAR($L233),{1,3,11},7)))=2,1,0),0) -> 1 | I233: 1.170862382 | J233: 21:06:02.510 | K233: 11:56:42.007 | L233: 2011-05-31 | M233: 05:51:02.458 | N233: 20:18:04.147 | O233: 150 | P233: 21:06:02.510 | Q233: 7.844027093 | R233: 0 | S233: 7.844027093
C234: 06/01/2011 | D234: 04:56:14 | E234: 21:06:48.763 | F234: 7.823399269 | G234: 14809 | H234: =IF($B$10=1,IF(MATCH($L234,DATE(YEAR($L234),{1,3,11},{1,15,8})-WEEKDAY(DATE(YEAR($L234),{1,3,11},7)))=2,1,0),0) -> 1 | I234: 1.171397716 | J234: 21:06:48.763 | K234: 11:56:13.881 | L234: 2011-06-01 | M234: 05:50:41.242 | N234: 20:18:44.375 | O234: 151 | P234: 21:06:48.763 | Q234: 7.823366179 | R234: 0 | S234: 7.823366179
C235: 06/02/2011 | D235: 04:55:48 | E235: 21:07:33.773 | F235: 7.803674152 | G235: 14854 | H235: =IF($B$10=1,IF(MATCH($L235,DATE(YEAR($L235),{1,3,11},{1,15,8})-WEEKDAY(DATE(YEAR($L235),{1,3,11},7)))=2,1,0),0) -> 1 | I235: 1.17191867 | J235: 21:07:33.773 | K235: 11:55:47.809 | L235: 2011-06-02 | M235: 05:50:21.814 | N235: 20:19:23.588 | O235: 152 | P235: 21:07:33.773 | Q235: 7.803621105 | R235: 0 | S235: 7.803621105
C236: 06/03/2011 | D236: 04:55:24 | E236: 21:08:17.492 | F236: 7.784863224 | G236: 14897 | H236: =IF($B$10=1,IF(MATCH($L236,DATE(YEAR($L236),{1,3,11},{1,15,8})-WEEKDAY(DATE(YEAR($L236),{1,3,11},7)))=2,1,0),0) -> 1 | I236: 1.17242468 | J236: 21:08:17.492 | K236: 11:55:23.807 | L236: 2011-06-03 | M236: 05:50:04.176 | N236: 20:20:01.747 | O236: 153 | P236: 21:08:17.492 | Q236: 7.784809741 | R236: 0 | S236: 7.784809741
C237: 06/04/2011 | D237: 04:55:02 | E237: 21:08:59.872 | F237: 7.766979886 | G237: 14940 | H237: =IF($B$10=1,IF(MATCH($L237,DATE(YEAR($L237),{1,3,11},{1,15,8})-WEEKDAY(DATE(YEAR($L237),{1,3,11},7)))=2,1,0),0) -> 1 | I237: 1.17291519 | J237: 21:08:59.872 | K237: 11:55:01.890 | L237: 2011-06-04 | M237: 05:49:48.332 | N237: 20:20:38.813 | O237: 154 | P237: 21:08:59.872 | Q237: 7.766949342 | R237: 0 | S237: 7.766949342
C238: 06/05/2011 | D238: 04:54:42 | E238: 21:09:40.865 | F238: 7.750037387 | G238: 14981 | H238: =IF($B$10=1,IF(MATCH($L238,DATE(YEAR($L238),{1,3,11},{1,15,8})-WEEKDAY(DATE(YEAR($L238),{1,3,11},7)))=2,1,0),0) -> 1 | I238: 1.173389646 | J238: 21:09:40.865 | K238: 11:54:42.069 | L238: 2011-06-05 | M238: 05:49:34.281 | N238: 20:21:14.750 | O238: 155 | P238: 21:09:40.865 | Q238: 7.750056507 | R238: 0 | S238: 7.750056507
C239: 06/06/2011 | D239: 04:54:24 | E239: 21:10:20.424 | F239: 7.734048792 | G239: 15020 | H239: =IF($B$10=1,IF(MATCH($L239,DATE(YEAR($L239),{1,3,11},{1,15,8})-WEEKDAY(DATE(YEAR($L239),{1,3,11},7)))=2,1,0),0) -> 1 | I239: 1.173847504 | J239: 21:10:20.424 | K239: 11:54:24.354 | L239: 2011-06-06 | M239: 05:49:22.024 | N239: 20:21:49.518 | O239: 156 | P239: 21:10:20.424 | Q239: 7.734147117 | R239: 0 | S239: 7.734147117
C240: 06/07/2011 | D240: 04:54:09 | E240: 21:10:58.503 | F240: 7.719304727 | G240: 15059 | H240: =IF($B$10=1,IF(MATCH($L240,DATE(YEAR($L240),{1,3,11},{1,15,8})-WEEKDAY(DATE(YEAR($L240),{1,3,11},7)))=2,1,0),0) -> 1 | I240: 1.174288229 | J240: 21:10:58.503 | K240: 11:54:08.754 | L240: 2011-06-07 | M240: 05:49:11.558 | N240: 20:22:23.082 | O240: 157 | P240: 21:10:58.503 | Q240: 7.719236298 | R240: 0 | S240: 7.719236298
C241: 06/08/2011 | D241: 04:53:55 | E241: 21:11:35.056 | F241: 7.705262237 | G241: 15095 | H241: =IF($B$10=1,IF(MATCH($L241,DATE(YEAR($L241),{1,3,11},{1,15,8})-WEEKDAY(DATE(YEAR($L241),{1,3,11},7)))=2,1,0),0) -> 1 | I241: 1.174711296 | J241: 21:11:35.056 | K241: 11:53:55.274 | L241: 2011-06-08 | M241: 05:49:02.880 | N241: 20:22:55.403 | O241: 158 | P241: 21:11:35.056 | Q241: 7.705338362 | R241: 0 | S241: 7.705338362
C242: 06/09/2011 | D242: 04:53:44 | E242: 21:12:10.039 | F242: 7.692489199 | G242: 15130 | H242: =IF($B$10=1,IF(MATCH($L242,DATE(YEAR($L242),{1,3,11},{1,15,8})-WEEKDAY(DATE(YEAR($L242),{1,3,11},7)))=2,1,0),0) -> 1 | I242: 1.175116191 | J242: 21:12:10.039 | K242: 11:53:43.919 | L242: 2011-06-09 | M242: 05:48:55.984 | N242: 20:23:26.445 | O242: 159 | P242: 21:12:10.039 | Q242: 7.692466772 | R242: 0 | S242: 7.692466772
C243: 06/10/2011 | D243: 04:53:35 | E243: 21:12:43.409 | F243: 7.680719848 | G243: 15163 | H243: =IF($B$10=1,IF(MATCH($L243,DATE(YEAR($L243),{1,3,11},{1,15,8})-WEEKDAY(DATE(YEAR($L243),{1,3,11},7)))=2,1,0),0) -> 1 | I243: 1.175502414 | J243: 21:12:43.409 | K243: 11:53:34.691 | L243: 2011-06-10 | M243: 05:48:50.864 | N243: 20:23:56.173 | O243: 160 | P243: 21:12:43.409 | Q243: 7.680634088 | R243: 0 | S243: 7.680634088
C244: 06/11/2011 | D244: 04:53:28 | E244: 21:13:15.123 | F244: 7.669965859 | G244: 15195 | H244: =IF($B$10=1,IF(MATCH($L244,DATE(YEAR($L244),{1,3,11},{1,15,8})-WEEKDAY(DATE(YEAR($L244),{1,3,11},7)))=2,1,0),0) -> 1 | I244: 1.175869478 | J244: 21:13:15.123 | K244: 11:53:27.590 | L244: 2011-06-11 | M244: 05:48:47.512 | N244: 20:24:24.551 | O244: 161 | P244: 21:13:15.123 | Q244: 7.669851931 | R244: 0 | S244: 7.669851931
C245: 06/12/2011 | D245: 04:53:23 | E245: 21:13:45.141 | F245: 7.660238539 | G245: 15225 | H245: =IF($B$10=1,IF(MATCH($L245,DATE(YEAR($L245),{1,3,11},{1,15,8})-WEEKDAY(DATE(YEAR($L245),{1,3,11},7)))=2,1,0),0) -> 1 | I245: 1.176216913 | J245: 21:13:45.141 | K245: 11:53:22.613 | L245: 2011-06-12 | M245: 05:48:45.918 | N245: 20:24:51.546 | O245: 162 | P245: 21:13:45.141 | Q245: 7.660130943 | R245: 0 | S245: 7.660130943
C246: 06/13/2011 | D246: 04:53:20 | E246: 21:14:13.424 | F246: 7.651548801 | G246: 15253 | H246: =IF($B$10=1,IF(MATCH($L246,DATE(YEAR($L246),{1,3,11},{1,15,8})-WEEKDAY(DATE(YEAR($L246),{1,3,11},7)))=2,1,0),0) -> 1 | I246: 1.176544263 | J246: 21:14:13.424 | K246: 11:53:19.755 | L246: 2011-06-13 | M246: 05:48:46.071 | N246: 20:25:17.123 | O246: 163 | P246: 21:14:13.424 | Q246: 7.65148075 | R246: 0 | S246: 7.65148075
C247: 06/14/2011 | D247: 04:53:19 | E247: 21:14:39.934 | F247: 7.643907135 | G247: 15280 | H247: =IF($B$10=1,IF(MATCH($L247,DATE(YEAR($L247),{1,3,11},{1,15,8})-WEEKDAY(DATE(YEAR($L247),{1,3,11},7)))=2,1,0),0) -> 1 | I247: 1.176851092 | J247: 21:14:39.934 | K247: 11:53:19.010 | L247: 2011-06-14 | M247: 05:48:47.957 | N247: 20:25:41.251 | O247: 164 | P247: 21:14:39.934 | Q247: 7.643909928 | R247: 0 | S247: 7.643909928
C248: 06/15/2011 | D248: 04:53:20 | E248: 21:15:04.635 | F248: 7.637323587 | G248: 15305 | H248: =IF($B$10=1,IF(MATCH($L248,DATE(YEAR($L248),{1,3,11},{1,15,8})-WEEKDAY(DATE(YEAR($L248),{1,3,11},7)))=2,1,0),0) -> 1 | I248: 1.17713698 | J248: 21:15:04.635 | K248: 11:53:20.369 | L248: 2011-06-15 | M248: 05:48:51.562 | N248: 20:26:03.898 | O248: 165 | P248: 21:15:04.635 | Q248: 7.637425977 | R248: 0 | S248: 7.637425977
C249: 06/16/2011 | D249: 04:53:24 | E249: 21:15:27.492 | F249: 7.63208551 | G249: 15327 | H249: =IF($B$10=1,IF(MATCH($L249,DATE(YEAR($L249),{1,3,11},{1,15,8})-WEEKDAY(DATE(YEAR($L249),{1,3,11},7)))=2,1,0),0) -> 1 | I249: 1.17740153 | J249: 21:15:27.492 | K249: 11:53:23.819 | L249: 2011-06-16 | M249: 05:48:56.872 | N249: 20:26:25.033 | O249: 166 | P249: 21:15:27.492 | Q249: 7.632035287 | R249: 0 | S249: 7.632035287
C250: 06/17/2011 | D250: 04:53:29 | E250: 21:15:48.473 | F250: 7.627646432 | G250: 15348 | H250: =IF($B$10=1,IF(MATCH($L250,DATE(YEAR($L250),{1,3,11},{1,15,8})-WEEKDAY(DATE(YEAR($L250),{1,3,11},7)))=2,1,0),0) -> 1 | I250: 1.177644362 | J250: 21:15:48.473 | K250: 11:53:29.348 | L250: 2011-06-17 | M250: 05:49:03.867 | N250: 20:26:44.627 | O250: 167 | P250: 21:15:48.473 | Q250: 7.627743126 | R250: 0 | S250: 7.627743126
C251: 06/18/2011 | D251: 04:53:37 | E251: 21:16:07.546 | F251: 7.624570481 | G251: 15368 | H251: =IF($B$10=1,IF(MATCH($L251,DATE(YEAR($L251),{1,3,11},{1,15,8})-WEEKDAY(DATE(YEAR($L251),{1,3,11},7)))=2,1,0),0) -> 1 | I251: 1.177865119 | J251: 21:16:07.546 | K251: 11:53:36.939 | L251: 2011-06-18 | M251: 05:49:12.529 | N251: 20:27:02.652 | O251: 168 | P251: 21:16:07.546 | Q251: 7.624553609 | R251: 0 | S251: 7.624553609
C252: 06/19/2011 | D252: 04:53:47 | E252: 21:16:24.683 | F252: 7.62258792 | G252: 15385 | H252: =IF($B$10=1,IF(MATCH($L252,DATE(YEAR($L252),{1,3,11},{1,15,8})-WEEKDAY(DATE(YEAR($L252),{1,3,11},7)))=2,1,0),0) -> 1 | I252: 1.178063466 | J252: 21:16:24.683 | K252: 11:53:46.574 | L252: 2011-06-19 | M252: 05:49:22.837 | N252: 20:27:19.081 | O252: 169 | P252: 21:16:24.683 | Q252: 7.622469696 | R252: 0 | S252: 7.622469696
C253: 06/20/2011 | D253: 04:53:58 | E253: 21:16:39.858 | F253: 7.621428467 | G253: 15400 | H253: =IF($B$10=1,IF(MATCH($L253,DATE(YEAR($L253),{1,3,11},{1,15,8})-WEEKDAY(DATE(YEAR($L253),{1,3,11},7)))=2,1,0),0) -> 1 | I253: 1.178239092 | J253: 21:16:39.858 | K253: 11:53:58.233 | L253: 2011-06-20 | M253: 05:49:34.771 | N253: 20:27:33.888 | O253: 170 | P253: 21:16:39.858 | Q253: 7.62149317 | R253: 0 | S253: 7.62149317
... 1694 more rows

Sheet solar_position
A1: Calculation of solar azimuth and elevation based on the calculation procedure by NOAA (http://www.srrb.noaa.gov/highlights/sunrise/azel.html)
A3: Input
A4: latitude in decimal degrees (positive in northern hemisphere) | B4: =47+36/60 -> 47.6
A5: longitude in decimal degrees (negative for western hemisphere) | B5: =-122-19/60 -> -122.3166667
A6: year | B6: 2001
A7: month | B7: 6
A8: day | B8: 21
A9: hours | B9: 13
A10: minutes | B10: 11
A11: seconds | B11: 0
A12: time zone in hours relative to GMT/UTC (PST= -8, MST= -7, CST= -6, EST= -5) | B12: -8
A13: daylight savings time (no= 0, yes= 1) | B13: 1
A15: Output
A16: solar azimuth (degrees clockwise from north) | B16: =solarazimuth(B4,B5,B6,B7,B8,B9,B10,B11,B12,B13) -> 179.9336529
A17: solar elevation (degrees from horizon) | B17: =solarelevation(B4,B5,B6,B7,B8,B9,B10,B11,B12,B13) -> 65.84507751
